DepartmentFamily,Entity,Date,ExpenseType,ExpenseArea,Supplier,PaymentNumber,InvoiceDistributionAmount,InvoiceDescription,SupplierPostCode,TransactionType
FOOD STANDARDS AGENCY - Westminster,FOOD STANDARDS AGENCY - Westminster,2019-11-01,EXP - PURCHASE OF GOODS/SERVICES - OTHER - PROGRAMME EXPENDITURE,Scientific Methods & Laboratory Policy,PUBLIC HEALTH ENGLAND,2012700695,70252.41,FS516010 - National Reference Laboratory for Microbiology,NW9 5EQ,PROGRAMME
FOOD STANDARDS AGENCY - Westminster,FOOD STANDARDS AGENCY - Westminster,2019-11-01,EXP - PURCHASE OF GOODS/SERVICES - OTHER - PROGRAMME EXPENDITURE,Chief Scientific Advisors team,ELSEVIER B V,1011711045,38555.05,Science Direct (Elsevier) subscription renewal,1043 NX,PROGRAMME
FOOD STANDARDS AGENCY - Westminster,FOOD STANDARDS AGENCY - Westminster,2019-11-04,EXP - AMORTISATION - INTANGIBLE ASSETS,Digital,EPIMORPHICS LTD,1011711053,57756.64,ROF - WP 19 UV & UKFSS,BS20 6PT,CAPITAL
FOOD STANDARDS AGENCY - Westminster,FOOD STANDARDS AGENCY - Westminster,2019-11-04,EXP - AMORTISATION - INTANGIBLE ASSETS,Digital,EPIMORPHICS LTD,1011711053,11551.33,ROF - WP 19 UV & UKFSS,BS20 6PT,CAPITAL
FOOD STANDARDS AGENCY - Westminster,FOOD STANDARDS AGENCY - Westminster,2019-11-05,EXP - PURCHASE OF GOODS/SERVICES - OTHER - PROGRAMME EXPENDITURE,Analytics Unit,NATIONAL CENTRE FOR SOCIAL RESEARCH,1011711075,123524,TBC 20% retention on final deliverable,EC1V 0AX,PROGRAMME
FOOD STANDARDS AGENCY - Westminster,FOOD STANDARDS AGENCY - Westminster,2019-11-05,EXP - PURCHASE OF GOODS/SERVICES - OTHER ICT COSTS - COMPUTER HARDWARE,IT Service Delivery,COREAZURE LTD,1011711084,31655,Datacentre Discovery and Design - Fixed Price - Azure Managed Service (WP4),EC1A 4EN,ADMIN
FOOD STANDARDS AGENCY - Westminster,FOOD STANDARDS AGENCY - Westminster,2019-11-05,EXP - PURCHASE OF GOODS/SERV - SUPPORT - IT SUPPORT SERVICES,IT Service Delivery,LITTLE FISH UK LTD,1011711085,24611,Littlefish - End user monthly service charge ,NG1 1LS,ADMIN
FOOD STANDARDS AGENCY - Westminster,FOOD STANDARDS AGENCY - Westminster,2019-11-06,EXP - PURCHASE OF GOODS/SERVICES - OTHER - PROGRAMME EXPENDITURE,Risk Assessment ??? research and development,PUBLIC HEALTH ENGLAND,2012700698,510000,CO-FUNDING OF NATIONAL DIETARY AND NUTRITION SURVEY (NDNS) BY THE AGENCY,NW9 5EQ,PROGRAMME
FOOD STANDARDS AGENCY - Westminster,FOOD STANDARDS AGENCY - Westminster,2019-11-08,EXP - PURCHASE OF GOODS/SERVICES - OTHER - PROGRAMME EXPENDITURE,Scientific Methods & Laboratory Policy,LGC LTD,1011711137,39998.47,DEVELOPMENT OF QUALITY CONTROL MATERIALS FOR FOOD ALLERGEN ANALYSIS12/01/2018 to 10/05/2019,TW11 0LY,PROGRAMME
FOOD STANDARDS AGENCY - Westminster,FOOD STANDARDS AGENCY - Westminster,2019-11-08,EXP - PURCHASE OF GOODS/SERVICES - OTHER - PROGRAMME EXPENDITURE,Scientific Methods & Laboratory Policy,LGC LTD,1011711137,39998.47,DEVELOPMENT OF QUALITY CONTROL MATERIALS FOR FOOD ALLERGEN ANALYSIS12/01/2018 to 10/05/2019 ,TW11 0LY,PROGRAMME
FOOD STANDARDS AGENCY - Westminster,FOOD STANDARDS AGENCY - Westminster,2019-11-08,EXP - PURCHASE OF GOODS/SERVICES - OTHER - PROGRAMME EXPENDITURE,Regulatory Delivery,C E F A S,2012700699,36022.5,Shellfish biotoxin analysis costs 2019/20,NR33 0HT,PROGRAMME
FOOD STANDARDS AGENCY - Westminster,FOOD STANDARDS AGENCY - Westminster,2019-11-08,EXP - PURCHASE OF GOODS/SERVICES - OTHER - PROGRAMME EXPENDITURE,Regulatory Delivery,C E F A S,2012700699,21771,Shellfish classification management E&W 2019-20,NR33 0HT,PROGRAMME
FOOD STANDARDS AGENCY - Westminster,FOOD STANDARDS AGENCY - Westminster,2019-11-08,EXP - PURCHASE OF GOODS/SERVICES - OTHER - PROGRAMME EXPENDITURE,Scientific Methods & Laboratory Policy,LGC LTD,1011711137,-39998.47,DEVELOPMENT OF QUALITY CONTROL MATERIALS FOR FOOD ALLERGEN ANALYSIS12/01/2018 to 10/05/2019 ,TW11 0LY,PROGRAMME
FOOD STANDARDS AGENCY - Westminster,FOOD STANDARDS AGENCY - Westminster,2019-11-11,EXP - PURCHASE OF GOODS/SERV - SUPPORT - IT SUPPORT SERVICES,Operational Delivery,BDO LLP,1011711142,35300,To understand and ensure the SIR DB is GDPR compliant,RH6 0PA,PROGRAMME
FOOD STANDARDS AGENCY - Westminster,FOOD STANDARDS AGENCY - Westminster,2019-11-11,EXP - PURCHASE OF GOODS/SERV - SUPPORT - IT SUPPORT SERVICES,Operational Delivery,BDO LLP,1011711142,7060,SIR DB AUDIT,RH6 0PA,PROGRAMME
FOOD STANDARDS AGENCY - Westminster,FOOD STANDARDS AGENCY - Westminster,2019-11-13,EXP - PURCHASE OF GOODS/SERVICES - OTHER - PROGRAMME EXPENDITURE,Chief Scientific Advisors team,QUADRAM INSTITUTE BIOSCIENCE,1011711168,62500,Work on bacterial foodborne pathogens and food safety.,NR4 7UA,PROGRAMME
FOOD STANDARDS AGENCY - Westminster,FOOD STANDARDS AGENCY - Westminster,2019-11-14,EXP - PURCHASE OF GOODS/SERVICES- OTHER - PROGRAMME EXP - LOCAL AUTHORITY GRANTS,Regulatory Delivery,TRADING STANDARDS INSTITUTE (GRANTS),1011711196,308690.28,Feed Off. Conts 2019 / 20 Prog delivery (inland/ports). Feed Official Controls funding 2019 / 20,SS15 6TH,ADMIN
FOOD STANDARDS AGENCY - Westminster,FOOD STANDARDS AGENCY - Westminster,2019-11-14,EXP - PURCHASE OF GOODS/SERVICES - OTHER - PROGRAMME EXPENDITURE,Risk Assessment ??? research and development,UNIVERSITY OF MANCHESTER,1011711201,252643.5,"The Adult Food Allergy Research Project will establish the true prevalence of adult food allergy in the UK, which has not been previously definied.",M13 9PL,PROGRAMME
FOOD STANDARDS AGENCY - Westminster,FOOD STANDARDS AGENCY - Westminster,2019-11-14,EXP - PURCHASE OF GOODS/SERVICES - OTHER ICT COSTS - COMPUTER HARDWARE,IT Service Delivery,COREAZURE LTD,1011711188,73990.03,IT24 Var 2 - Azure CSP ?? Consumption Jul 19 ?? Jun 20,EC1A 4EN,ADMIN
FOOD STANDARDS AGENCY - Westminster,FOOD STANDARDS AGENCY - Westminster,2019-11-14,EXP - PURCHASE OF GOODS/SERVICES- OTHER - PROGRAMME EXP - LOCAL AUTHORITY GRANTS,Regulatory Delivery,TRADING STANDARDS INSTITUTE (GRANTS),1011711196,65200.9,Feed Off. Conts 2019 / 20 Prog delivery (FH@PP). Feed Official Controls funding 2019 / 20,SS15 6TH,ADMIN
FOOD STANDARDS AGENCY - Westminster,FOOD STANDARDS AGENCY - Westminster,2019-11-14,EXP - PURCHASE OF GOODS/SERVICES - OTHER ICT COSTS - COMPUTER HARDWARE,IT Service Delivery,COREAZURE LTD,1011711188,31655,Datacentre Discovery and Design - Fixed Price - Azure Managed Service (WP4),EC1A 4EN,ADMIN
FOOD STANDARDS AGENCY - Westminster,FOOD STANDARDS AGENCY - Westminster,2019-11-15,EXP - PURCHASE OF GOODS/SERV - SUPPORT - IT SUPPORT SERVICES,Finance Director & Branch,SHARED SERVICES CONNECTED LTD,1011711207,24953.18,SSCL Core charge management services,HP2 7AH,ADMIN
FOOD STANDARDS AGENCY - Westminster,FOOD STANDARDS AGENCY - Westminster,2019-11-18,EXP - PURCHASE OF GOODS/SERVICES - SHARED SERV OUTSRCG- CIVIL SERV PENSION ADMIN,Finance Director & Branch,LONDON PENSIONS FUND AUTHORITY,1011711228,124568.58,2019-20 LPFA pension deficit reduction,EC3N 4LP,ADMIN
FOOD STANDARDS AGENCY - Westminster,FOOD STANDARDS AGENCY - Westminster,2019-11-19,EXP - PURCHASE OF GOODS/SERVICES -OTHER PROF SERV- LEGAL EXPENSES- RING FENCED ITEMS,Operational Delivery,GOVERNMENT LEGAL DEPARTMENT,30000008,40000,PAYMENT ON ACCOUNT TOWARDS CLAIMANT COSTS REF Z1419807-R2,WC2B 4TS,PROGRAMME
FOOD STANDARDS AGENCY - Westminster,FOOD STANDARDS AGENCY - Westminster,2019-11-20,EXP - PURCHASE OF GOODS/SERVICES - OTHER - PROGRAMME EXPENDITURE,Chief Scientific Advisors team,THE ALAN TURING INSTITUTE,1011711241,28200,??Road-mapping Uses of Advanced Analytics in the UK Food and Drink Sector??,NW1 2DB,PROGRAMME
FOOD STANDARDS AGENCY - Westminster,FOOD STANDARDS AGENCY - Westminster,2019-11-20,EXP - PURCHASE OF GOODS/SERVICES - OTHER - PROGRAMME EXPENDITURE,Chief Scientific Advisors team,THE ALAN TURING INSTITUTE,1011711241,5640,DRINK SECTOR,NW1 2DB,PROGRAMME
FOOD STANDARDS AGENCY - Westminster,FOOD STANDARDS AGENCY - Westminster,2019-11-21,EXP - AMORTISATION - INTANGIBLE ASSETS,Digital,EPIMORPHICS LTD,1011711248,41355.9,ROF - WP 19 UV & UKFSS,BS20 6PT,CAPITAL
FOOD STANDARDS AGENCY - Westminster,FOOD STANDARDS AGENCY - Westminster,2019-11-21,EXP - PURCHASE OF GOODS/SERVICES - OFFICE RELATED - PUBLICATIONS,IT Information & Knowledge Management,RESTORE PLC,1011711245,26113.74,Offsite storage costs at Restore ,RH1 5DY,ADMIN
FOOD STANDARDS AGENCY - Westminster,FOOD STANDARDS AGENCY - Westminster,2019-11-21,EXP - AMORTISATION - INTANGIBLE ASSETS,Digital,EPIMORPHICS LTD,1011711248,8271.18,ROF - WP 19 UV & UKFSS,BS20 6PT,CAPITAL
FOOD STANDARDS AGENCY - Westminster,FOOD STANDARDS AGENCY - Westminster,2019-11-22,EXP - PURCHASE OF GOODS/SERVICES - OTHER TRAVEL - LEASE CAR INS & ROAD TAX,Operational Delivery,AON UK LTD,1011711252,41932.8,AON Lease Car Insurance ,EC3V 4AN,PROGRAMME
FOOD STANDARDS AGENCY - Westminster,FOOD STANDARDS AGENCY - Westminster,2019-11-22,EXP - PURCHASE OF GOODS/SERV - SUPPORT - IT SUPPORT SERVICES,IT Service Delivery,LITTLE FISH UK LTD,1011711255,24264,Littlefish - Monthy Service Desk charge ,NG1 1LS,ADMIN
FOOD STANDARDS AGENCY - Westminster,FOOD STANDARDS AGENCY - Westminster,2019-11-22,EXP - PURCHASE OF GOODS/SERV - SUPPORT - IT SUPPORT SERVICES,IT Service Delivery,LITTLE FISH UK LTD,1011711255,24264,Littlefish - Monthy Service Desk charge ,NG1 1LS,ADMIN
FOOD STANDARDS AGENCY - Westminster,FOOD STANDARDS AGENCY - Westminster,2019-11-22,EXP - PURCHASE OF GOODS/SERVICES - OTHER - PROGRAMME EXPENDITURE,Scientific Methods & Laboratory Policy,FERA SCIENCE LIMITED,1011711258,20960,FS 616030 - National Reference Laboratory for Contaminants,YO41 1LZ,PROGRAMME
FOOD STANDARDS AGENCY - Westminster,FOOD STANDARDS AGENCY - Westminster,2019-11-22,EXP - PURCHASE OF GOODS/SERV - SUPPORT - IT SUPPORT SERVICES,IT Service Delivery,LITTLE FISH UK LTD,1011711255,8000,Littlefish - Monthly Service Desk charge additional support,NG1 1LS,ADMIN
FOOD STANDARDS AGENCY - Westminster,FOOD STANDARDS AGENCY - Westminster,2019-11-22,EXP - PURCHASE OF GOODS/SERV - SUPPORT - IT SUPPORT SERVICES,IT Service Delivery,LITTLE FISH UK LTD,1011711255,8000,Littlefish - Monthly Service Desk charge  additional support,NG1 1LS,ADMIN
FOOD STANDARDS AGENCY - Westminster,FOOD STANDARDS AGENCY - Westminster,2019-11-22,EXP - PURCHASE OF GOODS/SERV - SUPPORT - IT SUPPORT SERVICES,IT Service Delivery,LITTLE FISH UK LTD,1011711255,2150,LittleFish Monthy Service Desk charge,NG1 1LS,ADMIN
FOOD STANDARDS AGENCY - Westminster,FOOD STANDARDS AGENCY - Westminster,2019-11-22,EXP - PURCHASE OF GOODS/SERV - SUPPORT - IT SUPPORT SERVICES,IT Service Delivery,LITTLE FISH UK LTD,1011711255,2150,Service desk - additional ticket volume,NG1 1LS,ADMIN
FOOD STANDARDS AGENCY - Westminster,FOOD STANDARDS AGENCY - Westminster,2019-11-26,EXP - PURCHASE OF GOODS/SERVICES - OTHER PROFESSIONAL SERVICES,Procurement,NOT BINARY LTD,1011711270,93600,"FSA HR, Payroll & Finance Discovery",E1 6JE,ADMIN
FOOD STANDARDS AGENCY - Westminster,FOOD STANDARDS AGENCY - Westminster,2019-11-26,EXP - PURCHASE OF GOODS/SERVICES - OTHER PROFESSIONAL SERVICES,Procurement,NOT BINARY LTD,1011711270,17861.48,FSA HR & Finance Discovery uplift,E1 6JE,ADMIN
FOOD STANDARDS AGENCY - Westminster,FOOD STANDARDS AGENCY - Westminster,2019-11-27,EXP - PURCHASE OF GOODS/SERVICES - OTHER - PROGRAMME EXPENDITURE,Surveillance,COGNIZANT WORLDWIDE LTD,1011711291,91097.5,Cognizant - Data Science Core Team (Surveillance),W2 6BD,PROGRAMME
FOOD STANDARDS AGENCY - Westminster,FOOD STANDARDS AGENCY - Westminster,2019-11-27,EXP - PURCHASE OF GOODS/SERVICES - OTHER FACILTIES COSTS - SECURITY,IT Information & Knowledge Management,COREAZURE LTD,1011711294,38400,improvements to security of FSA Azure cloud,EC1A 4EN,ADMIN
FOOD STANDARDS AGENCY - Westminster,FOOD STANDARDS AGENCY - Westminster,2019-11-27,EXP - PURCHASE OF GOODS/SERVICES - OTHER - PROGRAMME EXPENDITURE,Regulatory Delivery,C E F A S,2012700703,36022.5,Shellfish biotoxin analysis costs 2019/20,NR33 0HT,PROGRAMME
FOOD STANDARDS AGENCY - Westminster,FOOD STANDARDS AGENCY - Westminster,2019-11-27,EXP - PURCHASE OF GOODS/SERVICES - OTHER - PROGRAMME EXPENDITURE,Regulatory Delivery,C E F A S,2012700703,21771,Shellfish classification management E&W 2019-20,NR33 0HT,PROGRAMME
FOOD STANDARDS AGENCY - Westminster,FOOD STANDARDS AGENCY - Westminster,2019-11-27,EXP - PURCHASE OF GOODS/SERVICES - OTHER - PROGRAMME EXPENDITURE,Scientific Methods & Laboratory Policy,FERA SCIENCE LIMITED,1011711300,20960,FS 616030 - National Reference Laboratory for Contaminants,YO41 1LZ,PROGRAMME
FOOD STANDARDS AGENCY - Westminster,FOOD STANDARDS AGENCY - Westminster,2019-11-27,EXP - PURCHASE OF GOODS/SERVICES - OTHER FACILTIES COSTS - SECURITY,IT Information & Knowledge Management,COREAZURE LTD,1011711294,7680,improvements to security of FSA Azure cloud,EC1A 4EN,ADMIN
FOOD STANDARDS AGENCY - Westminster,FOOD STANDARDS AGENCY - Westminster,2019-11-28,EXP - PURCHASE OF GOODS/SERVICES - IT MANAGEMENT AND CHANGE - IT DEVELOPMENT,Operational Delivery,NOT BINARY LTD,1011711310,79500,Food Plant Inspection Service Discovery,E1 6JE,PROGRAMME
FOOD STANDARDS AGENCY - Westminster,FOOD STANDARDS AGENCY - Westminster,2019-11-29,EXP - PURCHASE OF GOODS/SERVICES - OTHER PROFESSIONAL SERVICES,Operational Delivery,ARCO UK LTD,1011711321,27185.5,Funds for 2019/20 Bulk PO11770002606 to fulfill operations delivery,HU1 2SJ,PROGRAMME
FOOD STANDARDS AGENCY - Westminster,FOOD STANDARDS AGENCY - Westminster,2019-11-29,EXP - PURCHASE OF GOODS/SERVICES - OTHER - NEXT GENERATION - HR,Organisational Development,MINISTRY OF JUSTICE,2012700705,22500,CSHR Casework (MoJ) ?? Annual Service Cost,NP20 9BB,ADMIN
FOOD STANDARDS AGENCY - Westminster,FOOD STANDARDS AGENCY - Westminster,2019-11-29,EXP - PURCHASE OF GOODS/SERVICES - OTHER - NEXT GENERATION - HR,Organisational Development,MINISTRY OF JUSTICE,2012700705,4500,20%STD,NP20 9BB,ADMIN
FOOD STANDARDS AGENCY - Westminster,FOOD STANDARDS AGENCY - Westminster,2019-11-07,EXP - PURCHASE OF GOODS/SERVICES - RAIL TRAVEL,Regulatory Delivery,CORPORATE TRAVEL MANAGEMENT NORTH LTD,1011711107,2791.25,Travel & Subsistence Week 43,BD1 5HQ,ADMIN
FOOD STANDARDS AGENCY - Westminster,FOOD STANDARDS AGENCY - Westminster,2019-11-07,EXP - PURCHASE OF GOODS/SERVICES - SUBSISTENCE,Internal Audit,CORPORATE TRAVEL MANAGEMENT NORTH LTD,1011711107,2573.14,Travel & Subsistence Week 43,BD1 5HQ,ADMIN
FOOD STANDARDS AGENCY - Westminster,FOOD STANDARDS AGENCY - Westminster,2019-11-07,EXP - PURCHASE OF GOODS/SERVICES - RAIL TRAVEL,Corporate Support Unit,CORPORATE TRAVEL MANAGEMENT NORTH LTD,1011711107,2027.9,Travel & Subsistence Week 43,BD1 5HQ,ADMIN
FOOD STANDARDS AGENCY - Westminster,FOOD STANDARDS AGENCY - Westminster,2019-11-07,EXP - PURCHASE OF GOODS/SERVICES - SUBSISTENCE,East 1,CORPORATE TRAVEL MANAGEMENT NORTH LTD,1011711107,1684.4,Travel & Subsistence Week 43,BD1 5HQ,PROGRAMME
FOOD STANDARDS AGENCY - Westminster,FOOD STANDARDS AGENCY - Westminster,2019-11-07,EXP - PURCHASE OF GOODS/SERVICES - SUBSISTENCE,Regulatory Delivery,CORPORATE TRAVEL MANAGEMENT NORTH LTD,1011711107,1673.24,Travel & Subsistence Week 43,BD1 5HQ,ADMIN
FOOD STANDARDS AGENCY - Westminster,FOOD STANDARDS AGENCY - Westminster,2019-11-07,EXP - PURCHASE OF GOODS/SERVICES - RAIL TRAVEL,RDOT,CORPORATE TRAVEL MANAGEMENT NORTH LTD,1011711107,1632.95,Travel & Subsistence Week 43,BD1 5HQ,PROGRAMME
FOOD STANDARDS AGENCY - Westminster,FOOD STANDARDS AGENCY - Westminster,2019-11-07,EXP - PURCHASE OF GOODS/SERVICES - RAIL TRAVEL,NFCU Phase 2,CORPORATE TRAVEL MANAGEMENT NORTH LTD,1011711107,1487.3,Travel & Subsistence Week 43,BD1 5HQ,PROGRAMME
FOOD STANDARDS AGENCY - Westminster,FOOD STANDARDS AGENCY - Westminster,2019-11-07,EXP - PURCHASE OF GOODS/SERVICES - RAIL TRAVEL,Operational Delivery,CORPORATE TRAVEL MANAGEMENT NORTH LTD,1011711107,1429.75,Travel & Subsistence Week 43,BD1 5HQ,PROGRAMME
FOOD STANDARDS AGENCY - Westminster,FOOD STANDARDS AGENCY - Westminster,2019-11-07,EXP - PURCHASE OF GOODS/SERVICES - RAIL TRAVEL,IT Information & Knowledge Management,CORPORATE TRAVEL MANAGEMENT NORTH LTD,1011711107,1262.95,Travel & Subsistence Week 43,BD1 5HQ,ADMIN
FOOD STANDARDS AGENCY - Westminster,FOOD STANDARDS AGENCY - Westminster,2019-11-07,EXP - PURCHASE OF GOODS/SERVICES - RAIL TRAVEL,Organisational Development,CORPORATE TRAVEL MANAGEMENT NORTH LTD,1011711107,1251.4,Travel & Subsistence Week 43,BD1 5HQ,ADMIN
FOOD STANDARDS AGENCY - Westminster,FOOD STANDARDS AGENCY - Westminster,2019-11-07,EXP - PURCHASE OF GOODS/SERVICES - SUBSISTENCE,Operational Delivery,CORPORATE TRAVEL MANAGEMENT NORTH LTD,1011711107,989.27,Travel & Subsistence Week 43,BD1 5HQ,PROGRAMME
FOOD STANDARDS AGENCY - Westminster,FOOD STANDARDS AGENCY - Westminster,2019-11-07,EXP - PURCHASE OF GOODS/SERVICES - RAIL TRAVEL,"Novel Foods, GM, Radiological and Feed Additives",CORPORATE TRAVEL MANAGEMENT NORTH LTD,1011711107,923.4,Travel & Subsistence Week 43,BD1 5HQ,ADMIN
FOOD STANDARDS AGENCY - Westminster,FOOD STANDARDS AGENCY - Westminster,2019-11-07,EXP - PURCHASE OF GOODS/SERVICES - RAIL TRAVEL,Analytics Unit,CORPORATE TRAVEL MANAGEMENT NORTH LTD,1011711107,875.8,Travel & Subsistence Week 43,BD1 5HQ,ADMIN
FOOD STANDARDS AGENCY - Westminster,FOOD STANDARDS AGENCY - Westminster,2019-11-07,EXP - PURCHASE OF GOODS/SERVICES - RAIL TRAVEL,Non Meat Field Ops,CORPORATE TRAVEL MANAGEMENT NORTH LTD,1011711107,854.05,Travel & Subsistence Week 43,BD1 5HQ,PROGRAMME
FOOD STANDARDS AGENCY - Westminster,FOOD STANDARDS AGENCY - Westminster,2019-11-07,EXP - PURCHASE OF GOODS/SERVICES - SUBSISTENCE,IT Information & Knowledge Management,CORPORATE TRAVEL MANAGEMENT NORTH LTD,1011711107,825.6,Travel & Subsistence Week 43,BD1 5HQ,ADMIN
FOOD STANDARDS AGENCY - Westminster,FOOD STANDARDS AGENCY - Westminster,2019-11-07,EXP - PURCHASE OF GOODS/SERVICES - SUBSISTENCE,NFCU Phase 2,CORPORATE TRAVEL MANAGEMENT NORTH LTD,1011711107,805.12,Travel & Subsistence Week 43,BD1 5HQ,PROGRAMME
FOOD STANDARDS AGENCY - Westminster,FOOD STANDARDS AGENCY - Westminster,2019-11-07,EXP - PURCHASE OF GOODS/SERVICES - RAIL TRAVEL,Chief Scientific Advisors team,CORPORATE TRAVEL MANAGEMENT NORTH LTD,1011711107,789.6,Travel & Subsistence Week 43,BD1 5HQ,ADMIN
FOOD STANDARDS AGENCY - Westminster,FOOD STANDARDS AGENCY - Westminster,2019-11-07,EXP - PURCHASE OF GOODS/SERVICES - RAIL TRAVEL,Legal Branch A & Investigations,CORPORATE TRAVEL MANAGEMENT NORTH LTD,1011711107,705.9,Travel & Subsistence Week 43,BD1 5HQ,ADMIN
FOOD STANDARDS AGENCY - Westminster,FOOD STANDARDS AGENCY - Westminster,2019-11-07,EXP - PURCHASE OF GOODS/SERVICES - SUBSISTENCE,Organisational Development,CORPORATE TRAVEL MANAGEMENT NORTH LTD,1011711107,671.75,Travel & Subsistence Week 43,BD1 5HQ,ADMIN
FOOD STANDARDS AGENCY - Westminster,FOOD STANDARDS AGENCY - Westminster,2019-11-07,EXP - PURCHASE OF GOODS/SERVICES - RAIL TRAVEL,Imports & Exports Team (Admin),CORPORATE TRAVEL MANAGEMENT NORTH LTD,1011711107,660.25,Travel & Subsistence Week 43,BD1 5HQ,ADMIN
FOOD STANDARDS AGENCY - Westminster,FOOD STANDARDS AGENCY - Westminster,2019-11-07,EXP - PURCHASE OF GOODS/SERVICES - SUBSISTENCE,Risk Assessment ??? research and development,CORPORATE TRAVEL MANAGEMENT NORTH LTD,1011711107,645.4,Travel & Subsistence Week 43,BD1 5HQ,ADMIN
FOOD STANDARDS AGENCY - Westminster,FOOD STANDARDS AGENCY - Westminster,2019-11-07,EXP - PURCHASE OF GOODS/SERVICES - SUBSISTENCE,Corporate Support Unit,CORPORATE TRAVEL MANAGEMENT NORTH LTD,1011711107,596.35,Travel & Subsistence Week 43,BD1 5HQ,ADMIN
FOOD STANDARDS AGENCY - Westminster,FOOD STANDARDS AGENCY - Westminster,2019-11-07,EXP - PURCHASE OF GOODS/SERVICES - RAIL TRAVEL,Planning and Performance,CORPORATE TRAVEL MANAGEMENT NORTH LTD,1011711107,541.65,Travel & Subsistence Week 43,BD1 5HQ,ADMIN
FOOD STANDARDS AGENCY - Westminster,FOOD STANDARDS AGENCY - Westminster,2019-11-07,EXP - PURCHASE OF GOODS/SERVICES - RAIL TRAVEL,Resilience - Admin,CORPORATE TRAVEL MANAGEMENT NORTH LTD,1011711107,489.15,Travel & Subsistence Week 43,BD1 5HQ,ADMIN
FOOD STANDARDS AGENCY - Westminster,FOOD STANDARDS AGENCY - Westminster,2019-11-07,EXP - PURCHASE OF GOODS/SERVICES - RAIL TRAVEL,Digital,CORPORATE TRAVEL MANAGEMENT NORTH LTD,1011711107,476.05,Travel & Subsistence Week 43,BD1 5HQ,ADMIN
FOOD STANDARDS AGENCY - Westminster,FOOD STANDARDS AGENCY - Westminster,2019-11-07,EXP - PURCHASE OF GOODS/SERVICES - RAIL TRAVEL,Comms Directors Office,CORPORATE TRAVEL MANAGEMENT NORTH LTD,1011711107,418.8,Travel & Subsistence Week 43,BD1 5HQ,ADMIN
FOOD STANDARDS AGENCY - Westminster,FOOD STANDARDS AGENCY - Westminster,2019-11-07,EXP - PURCHASE OF GOODS/SERVICES - SUBSISTENCE,"Novel Foods, GM, Radiological and Feed Additives",CORPORATE TRAVEL MANAGEMENT NORTH LTD,1011711107,416.52,Travel & Subsistence Week 43,BD1 5HQ,ADMIN
FOOD STANDARDS AGENCY - Westminster,FOOD STANDARDS AGENCY - Westminster,2019-11-07,EXP - PURCHASE OF GOODS/SERVICES - AIR TRAVEL,RDOT,CORPORATE TRAVEL MANAGEMENT NORTH LTD,1011711107,412.51,Travel & Subsistence Week 43,BD1 5HQ,PROGRAMME
FOOD STANDARDS AGENCY - Westminster,FOOD STANDARDS AGENCY - Westminster,2019-11-07,EXP - PURCHASE OF GOODS/SERVICES - SUBSISTENCE,Chief Scientific Advisors team,CORPORATE TRAVEL MANAGEMENT NORTH LTD,1011711107,373.89,Travel & Subsistence Week 43,BD1 5HQ,ADMIN
FOOD STANDARDS AGENCY - Westminster,FOOD STANDARDS AGENCY - Westminster,2019-11-07,EXP - PURCHASE OF GOODS/SERVICES - SUBSISTENCE,Non Meat Field Ops,CORPORATE TRAVEL MANAGEMENT NORTH LTD,1011711107,364.96,Travel & Subsistence Week 43,BD1 5HQ,PROGRAMME
FOOD STANDARDS AGENCY - Westminster,FOOD STANDARDS AGENCY - Westminster,2019-11-07,EXP - PURCHASE OF GOODS/SERVICES - SUBSISTENCE,Wales and West 2 (England),CORPORATE TRAVEL MANAGEMENT NORTH LTD,1011711107,363.36,Travel & Subsistence Week 43,BD1 5HQ,PROGRAMME
FOOD STANDARDS AGENCY - Westminster,FOOD STANDARDS AGENCY - Westminster,2019-11-07,EXP - PURCHASE OF GOODS/SERVICES - RAIL TRAVEL,East 4,CORPORATE TRAVEL MANAGEMENT NORTH LTD,1011711107,334.25,Travel & Subsistence Week 43,BD1 5HQ,PROGRAMME
FOOD STANDARDS AGENCY - Westminster,FOOD STANDARDS AGENCY - Westminster,2019-11-07,EXP - PURCHASE OF GOODS/SERVICES -  FOREIGN AIR TRAVEL,"Novel Foods, GM, Radiological and Feed Additives",CORPORATE TRAVEL MANAGEMENT NORTH LTD,1011711107,332.5,Travel & Subsistence Week 43,BD1 5HQ,ADMIN
FOOD STANDARDS AGENCY - Westminster,FOOD STANDARDS AGENCY - Westminster,2019-11-07,EXP - PURCHASE OF GOODS/SERVICES - RAIL TRAVEL,North 4,CORPORATE TRAVEL MANAGEMENT NORTH LTD,1011711107,312.35,Travel & Subsistence Week 43,BD1 5HQ,PROGRAMME
FOOD STANDARDS AGENCY - Westminster,FOOD STANDARDS AGENCY - Westminster,2019-11-07,EXP - PURCHASE OF GOODS/SERVICES - SUBSISTENCE,RDOT,CORPORATE TRAVEL MANAGEMENT NORTH LTD,1011711107,311.56,Travel & Subsistence Week 43,BD1 5HQ,PROGRAMME
FOOD STANDARDS AGENCY - Westminster,FOOD STANDARDS AGENCY - Westminster,2019-11-07,EXP - PURCHASE OF GOODS/SERVICES - RAIL TRAVEL,Wales and West 4 ,CORPORATE TRAVEL MANAGEMENT NORTH LTD,1011711107,286.35,Travel & Subsistence Week 43,BD1 5HQ,PROGRAMME
FOOD STANDARDS AGENCY - Westminster,FOOD STANDARDS AGENCY - Westminster,2019-11-07,EXP - PURCHASE OF GOODS/SERVICES - SUBSISTENCE,Resilience - Admin,CORPORATE TRAVEL MANAGEMENT NORTH LTD,1011711107,250.52,Travel & Subsistence Week 43,BD1 5HQ,ADMIN
FOOD STANDARDS AGENCY - Westminster,FOOD STANDARDS AGENCY - Westminster,2019-11-07,EXP - PURCHASE OF GOODS/SERVICES - SUBSISTENCE,Wales and West 2 (Wales),CORPORATE TRAVEL MANAGEMENT NORTH LTD,1011711107,239.51,Travel & Subsistence Week 43,BD1 5HQ,PROGRAMME
FOOD STANDARDS AGENCY - Westminster,FOOD STANDARDS AGENCY - Westminster,2019-11-07,EXP - PURCHASE OF GOODS/SERVICES - RAIL TRAVEL,North 1,CORPORATE TRAVEL MANAGEMENT NORTH LTD,1011711107,235.8,Travel & Subsistence Week 43,BD1 5HQ,PROGRAMME
FOOD STANDARDS AGENCY - Westminster,FOOD STANDARDS AGENCY - Westminster,2019-11-07,EXP - PURCHASE OF GOODS/SERVICES - RAIL TRAVEL,Risk Assessment - operations,CORPORATE TRAVEL MANAGEMENT NORTH LTD,1011711107,230.2,Travel & Subsistence Week 43,BD1 5HQ,ADMIN
FOOD STANDARDS AGENCY - Westminster,FOOD STANDARDS AGENCY - Westminster,2019-11-07,EXP - PURCHASE OF GOODS/SERVICES - RAIL TRAVEL,East 3,CORPORATE TRAVEL MANAGEMENT NORTH LTD,1011711107,223.6,Travel & Subsistence Week 43,BD1 5HQ,PROGRAMME
FOOD STANDARDS AGENCY - Westminster,FOOD STANDARDS AGENCY - Westminster,2019-11-07,EXP - PURCHASE OF GOODS/SERVICES - RAIL TRAVEL,Procurement,CORPORATE TRAVEL MANAGEMENT NORTH LTD,1011711107,223.5,Travel & Subsistence Week 43,BD1 5HQ,ADMIN
FOOD STANDARDS AGENCY - Westminster,FOOD STANDARDS AGENCY - Westminster,2019-11-07,EXP - PURCHASE OF GOODS/SERVICES - AIR TRAVEL,Comms Directors Office,CORPORATE TRAVEL MANAGEMENT NORTH LTD,1011711107,217.48,Travel & Subsistence Week 43,BD1 5HQ,ADMIN
FOOD STANDARDS AGENCY - Westminster,FOOD STANDARDS AGENCY - Westminster,2019-11-07,EXP - PURCHASE OF GOODS/SERVICES - AIR TRAVEL,Scientific Methods & Laboratory Policy,CORPORATE TRAVEL MANAGEMENT NORTH LTD,1011711107,215.98,Travel & Subsistence Week 43,BD1 5HQ,ADMIN
FOOD STANDARDS AGENCY - Westminster,FOOD STANDARDS AGENCY - Westminster,2019-11-07,EXP - PURCHASE OF GOODS/SERVICES - SUBSISTENCE,Comms Directors Office,CORPORATE TRAVEL MANAGEMENT NORTH LTD,1011711107,215.61,Travel & Subsistence Week 43,BD1 5HQ,ADMIN
FOOD STANDARDS AGENCY - Westminster,FOOD STANDARDS AGENCY - Westminster,2019-11-07,EXP - PURCHASE OF GOODS/SERVICES - SUBSISTENCE,"Meat Hygiene, ABP, TSE",CORPORATE TRAVEL MANAGEMENT NORTH LTD,1011711107,202.54,Travel & Subsistence Week 43,BD1 5HQ,ADMIN
FOOD STANDARDS AGENCY - Westminster,FOOD STANDARDS AGENCY - Westminster,2019-11-07,EXP - PURCHASE OF GOODS/SERVICES - RAIL TRAVEL,"Animal Feed, Foodborne Disease and Allergy (AFFDA)",CORPORATE TRAVEL MANAGEMENT NORTH LTD,1011711107,191.35,Travel & Subsistence Week 43,BD1 5HQ,ADMIN
FOOD STANDARDS AGENCY - Westminster,FOOD STANDARDS AGENCY - Westminster,2019-11-07,EXP - PURCHASE OF GOODS/SERVICES - SUBSISTENCE,Finance Director & Branch,CORPORATE TRAVEL MANAGEMENT NORTH LTD,1011711107,186.96,Travel & Subsistence Week 43,BD1 5HQ,ADMIN
FOOD STANDARDS AGENCY - Westminster,FOOD STANDARDS AGENCY - Westminster,2019-11-07,EXP - PURCHASE OF GOODS/SERVICES - SUBSISTENCE,Wales and West 1 (Wales),CORPORATE TRAVEL MANAGEMENT NORTH LTD,1011711107,184.68,Travel & Subsistence Week 43,BD1 5HQ,PROGRAMME
FOOD STANDARDS AGENCY - Westminster,FOOD STANDARDS AGENCY - Westminster,2019-11-07,EXP - PURCHASE OF GOODS/SERVICES - RAIL TRAVEL,Food Crime Unit - Prog,CORPORATE TRAVEL MANAGEMENT NORTH LTD,1011711107,176.75,Travel & Subsistence Week 43,BD1 5HQ,PROGRAMME
FOOD STANDARDS AGENCY - Westminster,FOOD STANDARDS AGENCY - Westminster,2019-11-07,EXP - PURCHASE OF GOODS/SERVICES - SUBSISTENCE,Legal Branch A & Investigations,CORPORATE TRAVEL MANAGEMENT NORTH LTD,1011711107,175.67,Travel & Subsistence Week 43,BD1 5HQ,ADMIN
FOOD STANDARDS AGENCY - Westminster,FOOD STANDARDS AGENCY - Westminster,2019-11-07,EXP - PURCHASE OF GOODS/SERVICES -  FOREIGN AIR TRAVEL,Organisational Development,CORPORATE TRAVEL MANAGEMENT NORTH LTD,1011711107,175.34,Travel & Subsistence Week 43,BD1 5HQ,ADMIN
FOOD STANDARDS AGENCY - Westminster,FOOD STANDARDS AGENCY - Westminster,2019-11-07,EXP - PURCHASE OF GOODS/SERVICES - SUBSISTENCE,East 4,CORPORATE TRAVEL MANAGEMENT NORTH LTD,1011711107,168.56,Travel & Subsistence Week 43,BD1 5HQ,PROGRAMME
FOOD STANDARDS AGENCY - Westminster,FOOD STANDARDS AGENCY - Westminster,2019-11-07,EXP - PURCHASE OF GOODS/SERVICES - RAIL TRAVEL,Food Incidents & Resilience - Prog,CORPORATE TRAVEL MANAGEMENT NORTH LTD,1011711107,164.45,Travel & Subsistence Week 43,BD1 5HQ,PROGRAMME
FOOD STANDARDS AGENCY - Westminster,FOOD STANDARDS AGENCY - Westminster,2019-11-07,EXP - PURCHASE OF GOODS/SERVICES - SUBSISTENCE,"Animal Feed, Foodborne Disease and Allergy (AFFDA)",CORPORATE TRAVEL MANAGEMENT NORTH LTD,1011711107,154.46,Travel & Subsistence Week 43,BD1 5HQ,ADMIN
FOOD STANDARDS AGENCY - Westminster,FOOD STANDARDS AGENCY - Westminster,2019-11-07,EXP - PURCHASE OF GOODS/SERVICES - AIR TRAVEL,"Novel Foods, GM, Radiological and Feed Additives",CORPORATE TRAVEL MANAGEMENT NORTH LTD,1011711107,152.31,Travel & Subsistence Week 43,BD1 5HQ,ADMIN
FOOD STANDARDS AGENCY - Westminster,FOOD STANDARDS AGENCY - Westminster,2019-11-07,EXP - PURCHASE OF GOODS/SERVICES - AIR TRAVEL,Operational Delivery,CORPORATE TRAVEL MANAGEMENT NORTH LTD,1011711107,137.63,Travel & Subsistence Week 43,BD1 5HQ,PROGRAMME
FOOD STANDARDS AGENCY - Westminster,FOOD STANDARDS AGENCY - Westminster,2019-11-07,EXP - PURCHASE OF GOODS/SERVICES - RAIL TRAVEL,Food Crime Unit - Admin,CORPORATE TRAVEL MANAGEMENT NORTH LTD,1011711107,123.1,Travel & Subsistence Week 43,BD1 5HQ,ADMIN
FOOD STANDARDS AGENCY - Westminster,FOOD STANDARDS AGENCY - Westminster,2019-11-07,EXP - PURCHASE OF GOODS/SERVICES - RAIL TRAVEL,IT Service Delivery,CORPORATE TRAVEL MANAGEMENT NORTH LTD,1011711107,115.7,Travel & Subsistence Week 43,BD1 5HQ,ADMIN
FOOD STANDARDS AGENCY - Westminster,FOOD STANDARDS AGENCY - Westminster,2019-11-07,EXP - PURCHASE OF GOODS/SERVICES - RAIL TRAVEL,IT Strategy,CORPORATE TRAVEL MANAGEMENT NORTH LTD,1011711107,111,Travel & Subsistence Week 43,BD1 5HQ,ADMIN
FOOD STANDARDS AGENCY - Westminster,FOOD STANDARDS AGENCY - Westminster,2019-11-07,EXP - PURCHASE OF GOODS/SERVICES - SUBSISTENCE,Digital,CORPORATE TRAVEL MANAGEMENT NORTH LTD,1011711107,108.96,Travel & Subsistence Week 43,BD1 5HQ,ADMIN
FOOD STANDARDS AGENCY - Westminster,FOOD STANDARDS AGENCY - Westminster,2019-11-07,EXP - PURCHASE OF GOODS/SERVICES - RAIL TRAVEL,Programme and project delivery,CORPORATE TRAVEL MANAGEMENT NORTH LTD,1011711107,95.25,Travel & Subsistence Week 43,BD1 5HQ,ADMIN
FOOD STANDARDS AGENCY - Westminster,FOOD STANDARDS AGENCY - Westminster,2019-11-07,EXP - PURCHASE OF GOODS/SERVICES - OTHER TRAVEL,Regulatory Delivery,CORPORATE TRAVEL MANAGEMENT NORTH LTD,1011711107,94.3,Travel & Subsistence Week 43,BD1 5HQ,ADMIN
FOOD STANDARDS AGENCY - Westminster,FOOD STANDARDS AGENCY - Westminster,2019-11-07,EXP - PURCHASE OF GOODS/SERVICES - SUBSISTENCE,Wales and West 4 ,CORPORATE TRAVEL MANAGEMENT NORTH LTD,1011711107,93.96,Travel & Subsistence Week 43,BD1 5HQ,PROGRAMME
FOOD STANDARDS AGENCY - Westminster,FOOD STANDARDS AGENCY - Westminster,2019-11-07,EXP - PURCHASE OF GOODS/SERVICES - RAIL TRAVEL,North 2,CORPORATE TRAVEL MANAGEMENT NORTH LTD,1011711107,89.35,Travel & Subsistence Week 43,BD1 5HQ,PROGRAMME
FOOD STANDARDS AGENCY - Westminster,FOOD STANDARDS AGENCY - Westminster,2019-11-07,EXP - PURCHASE OF GOODS/SERVICES - SUBSISTENCE,Analytics Unit,CORPORATE TRAVEL MANAGEMENT NORTH LTD,1011711107,89.16,Travel & Subsistence Week 43,BD1 5HQ,ADMIN
FOOD STANDARDS AGENCY - Westminster,FOOD STANDARDS AGENCY - Westminster,2019-11-07,EXP - PURCHASE OF GOODS/SERVICES - RAIL TRAVEL,East 2,CORPORATE TRAVEL MANAGEMENT NORTH LTD,1011711107,81.95,Travel & Subsistence Week 43,BD1 5HQ,PROGRAMME
FOOD STANDARDS AGENCY - Westminster,FOOD STANDARDS AGENCY - Westminster,2019-11-07,EXP - PURCHASE OF GOODS/SERVICES - SUBSISTENCE,Food Crime Unit - Prog,CORPORATE TRAVEL MANAGEMENT NORTH LTD,1011711107,76.92,Travel & Subsistence Week 43,BD1 5HQ,PROGRAMME
FOOD STANDARDS AGENCY - Westminster,FOOD STANDARDS AGENCY - Westminster,2019-11-07,EXP - PURCHASE OF GOODS/SERVICES - RAIL TRAVEL,Internal Audit,CORPORATE TRAVEL MANAGEMENT NORTH LTD,1011711107,73.85,Travel & Subsistence Week 43,BD1 5HQ,ADMIN
FOOD STANDARDS AGENCY - Westminster,FOOD STANDARDS AGENCY - Westminster,2019-11-07,EXP - PURCHASE OF GOODS/SERVICES - RAIL TRAVEL,Wales and West 2 (England),CORPORATE TRAVEL MANAGEMENT NORTH LTD,1011711107,70.05,Travel & Subsistence Week 43,BD1 5HQ,PROGRAMME
FOOD STANDARDS AGENCY - Westminster,FOOD STANDARDS AGENCY - Westminster,2019-11-07,EXP - PURCHASE OF GOODS/SERVICES - OTHER TRAVEL,RDOT,CORPORATE TRAVEL MANAGEMENT NORTH LTD,1011711107,64.3,Travel & Subsistence Week 43,BD1 5HQ,PROGRAMME
FOOD STANDARDS AGENCY - Westminster,FOOD STANDARDS AGENCY - Westminster,2019-11-07,EXP - PURCHASE OF GOODS/SERVICES - SUBSISTENCE,Procurement,CORPORATE TRAVEL MANAGEMENT NORTH LTD,1011711107,60.55,Travel & Subsistence Week 43,BD1 5HQ,ADMIN
FOOD STANDARDS AGENCY - Westminster,FOOD STANDARDS AGENCY - Westminster,2019-11-07,EXP - PURCHASE OF GOODS/SERVICES - SUBSISTENCE,North 1,CORPORATE TRAVEL MANAGEMENT NORTH LTD,1011711107,57.18,Travel & Subsistence Week 43,BD1 5HQ,PROGRAMME
FOOD STANDARDS AGENCY - Westminster,FOOD STANDARDS AGENCY - Westminster,2019-11-07,EXP - PURCHASE OF GOODS/SERVICES - RAIL TRAVEL,Wales and West 1 (Wales),CORPORATE TRAVEL MANAGEMENT NORTH LTD,1011711107,50.75,Travel & Subsistence Week 43,BD1 5HQ,PROGRAMME
FOOD STANDARDS AGENCY - Westminster,FOOD STANDARDS AGENCY - Westminster,2019-11-07,EXP - PURCHASE OF GOODS/SERVICES - AIR TRAVEL,NFCU Phase 2,CORPORATE TRAVEL MANAGEMENT NORTH LTD,1011711107,47.48,Travel & Subsistence Week 43,BD1 5HQ,PROGRAMME
FOOD STANDARDS AGENCY - Westminster,FOOD STANDARDS AGENCY - Westminster,2019-11-07,EXP - PURCHASE OF GOODS/SERVICES - SUBSISTENCE,Scientific Methods & Laboratory Policy,CORPORATE TRAVEL MANAGEMENT NORTH LTD,1011711107,46.71,Travel & Subsistence Week 43,BD1 5HQ,ADMIN
FOOD STANDARDS AGENCY - Westminster,FOOD STANDARDS AGENCY - Westminster,2019-11-07,EXP - PURCHASE OF GOODS/SERVICES - RAIL TRAVEL,East 1,CORPORATE TRAVEL MANAGEMENT NORTH LTD,1011711107,40.1,Travel & Subsistence Week 43,BD1 5HQ,PROGRAMME
FOOD STANDARDS AGENCY - Westminster,FOOD STANDARDS AGENCY - Westminster,2019-11-07,EXP - PURCHASE OF GOODS/SERVICES - OTHER TRAVEL,Organisational Development,CORPORATE TRAVEL MANAGEMENT NORTH LTD,1011711107,37.15,Travel & Subsistence Week 43,BD1 5HQ,ADMIN
FOOD STANDARDS AGENCY - Westminster,FOOD STANDARDS AGENCY - Westminster,2019-11-07,EXP - PURCHASE OF GOODS/SERVICES - RAIL TRAVEL,Wales and West 3 ,CORPORATE TRAVEL MANAGEMENT NORTH LTD,1011711107,35.8,Travel & Subsistence Week 43,BD1 5HQ,PROGRAMME
FOOD STANDARDS AGENCY - Westminster,FOOD STANDARDS AGENCY - Westminster,2019-11-07,EXP - PURCHASE OF GOODS/SERVICES - RAIL TRAVEL,Wales and West 2 (Wales),CORPORATE TRAVEL MANAGEMENT NORTH LTD,1011711107,24,Travel & Subsistence Week 43,BD1 5HQ,PROGRAMME
FOOD STANDARDS AGENCY - Westminster,FOOD STANDARDS AGENCY - Westminster,2019-11-07,EXP - PURCHASE OF GOODS/SERVICES - OTHER TRAVEL,Legal Branch A & Investigations,CORPORATE TRAVEL MANAGEMENT NORTH LTD,1011711107,18.85,Travel & Subsistence Week 43,BD1 5HQ,ADMIN
FOOD STANDARDS AGENCY - Westminster,FOOD STANDARDS AGENCY - Westminster,2019-11-07,EXP - PURCHASE OF GOODS/SERVICES - OTHER TRAVEL,IT Information & Knowledge Management,CORPORATE TRAVEL MANAGEMENT NORTH LTD,1011711107,13.35,Travel & Subsistence Week 43,BD1 5HQ,ADMIN
FOOD STANDARDS AGENCY - Westminster,FOOD STANDARDS AGENCY - Westminster,2019-11-07,EXP - PURCHASE OF GOODS/SERVICES - RAIL TRAVEL,"Meat Hygiene, ABP, TSE",CORPORATE TRAVEL MANAGEMENT NORTH LTD,1011711107,-19.4,Travel & Subsistence Week 43,BD1 5HQ,ADMIN
FOOD STANDARDS AGENCY - Westminster,FOOD STANDARDS AGENCY - Westminster,2019-11-07,EXP - PURCHASE OF GOODS/SERVICES - SUBSISTENCE,Wales and West 1 (England),CORPORATE TRAVEL MANAGEMENT NORTH LTD,1011711107,-97.48,Travel & Subsistence Week 43,BD1 5HQ,PROGRAMME
FOOD STANDARDS AGENCY - Westminster,FOOD STANDARDS AGENCY - Westminster,2019-11-08,EXP - SHORT-TERM CONTRACT & AGENCY STAFF - FULL COST,Digital,ALEXANDER MANN SOLUTIONS LTD-2WM,1011711134,12934.66,TEMPORARY STAFF,EC2N 3AQ,ADMIN
FOOD STANDARDS AGENCY - Westminster,FOOD STANDARDS AGENCY - Westminster,2019-11-08,EXP - SHORT-TERM CONTRACT & AGENCY STAFF - FULL COST,Finance Director & Branch,ALEXANDER MANN SOLUTIONS LTD-2WM,1011711134,11334.99,TEMPORARY STAFF,EC2N 3AQ,ADMIN
FOOD STANDARDS AGENCY - Westminster,FOOD STANDARDS AGENCY - Westminster,2019-11-08,EXP - SHORT-TERM CONTRACT & AGENCY STAFF - FULL COST,Operational Delivery,ALEXANDER MANN SOLUTIONS LTD-2WM,1011711134,5296.98,TEMPORARY STAFF,EC2N 3AQ,PROGRAMME
FOOD STANDARDS AGENCY - Westminster,FOOD STANDARDS AGENCY - Westminster,2019-11-08,EXP - SHORT-TERM CONTRACT & AGENCY STAFF - FULL COST,Imports & Exports Team (Admin),ALEXANDER MANN SOLUTIONS LTD-2WM,1011711134,1225.26,TEMPORARY STAFF,EC2N 3AQ,ADMIN
FOOD STANDARDS AGENCY - Westminster,FOOD STANDARDS AGENCY - Westminster,2019-11-08,EXP - SHORT-TERM CONTRACT & AGENCY STAFF - FULL COST,Corporate Support Unit,ALEXANDER MANN SOLUTIONS LTD-2WM,1011711134,742.37,TEMPORARY STAFF,EC2N 3AQ,ADMIN
FOOD STANDARDS AGENCY - Westminster,FOOD STANDARDS AGENCY - Westminster,2019-11-08,EXP - SHORT-TERM CONTRACT & AGENCY STAFF - FULL COST,Legal Branch A & Investigations,ALEXANDER MANN SOLUTIONS LTD-2WM,1011711134,189.61,TEMPORARY STAFF,EC2N 3AQ,ADMIN
FOOD STANDARDS AGENCY - Westminster,FOOD STANDARDS AGENCY - Westminster,2019-11-12,EXP - PURCHASE OF GOODS/SERVICES - RAIL TRAVEL,Regulatory Delivery,CORPORATE TRAVEL MANAGEMENT NORTH LTD,1011711160,2711.6,Travel & Subsistence Week 44,BD1 5HQ,ADMIN
FOOD STANDARDS AGENCY - Westminster,FOOD STANDARDS AGENCY - Westminster,2019-11-12,EXP - PURCHASE OF GOODS/SERVICES - RAIL TRAVEL,Operational Delivery,CORPORATE TRAVEL MANAGEMENT NORTH LTD,1011711160,2409.25,Travel & Subsistence Week 44,BD1 5HQ,PROGRAMME
FOOD STANDARDS AGENCY - Westminster,FOOD STANDARDS AGENCY - Westminster,2019-11-12,EXP - PURCHASE OF GOODS/SERVICES - RAIL TRAVEL,Corporate Support Unit,CORPORATE TRAVEL MANAGEMENT NORTH LTD,1011711160,2274.2,Travel & Subsistence Week 44,BD1 5HQ,ADMIN
FOOD STANDARDS AGENCY - Westminster,FOOD STANDARDS AGENCY - Westminster,2019-11-12,EXP - PURCHASE OF GOODS/SERVICES - RAIL TRAVEL,NFCU Phase 2,CORPORATE TRAVEL MANAGEMENT NORTH LTD,1011711160,1904,Travel & Subsistence Week 44,BD1 5HQ,PROGRAMME
FOOD STANDARDS AGENCY - Westminster,FOOD STANDARDS AGENCY - Westminster,2019-11-12,EXP - PURCHASE OF GOODS/SERVICES - SUBSISTENCE,IT Information & Knowledge Management,CORPORATE TRAVEL MANAGEMENT NORTH LTD,1011711160,1468.79,Travel & Subsistence Week 44,BD1 5HQ,ADMIN
FOOD STANDARDS AGENCY - Westminster,FOOD STANDARDS AGENCY - Westminster,2019-11-12,EXP - PURCHASE OF GOODS/SERVICES - RAIL TRAVEL,Organisational Development,CORPORATE TRAVEL MANAGEMENT NORTH LTD,1011711160,1360.45,Travel & Subsistence Week 44,BD1 5HQ,ADMIN
FOOD STANDARDS AGENCY - Westminster,FOOD STANDARDS AGENCY - Westminster,2019-11-12,EXP - PURCHASE OF GOODS/SERVICES - SUBSISTENCE,NFCU Phase 2,CORPORATE TRAVEL MANAGEMENT NORTH LTD,1011711160,1123.02,Travel & Subsistence Week 44,BD1 5HQ,PROGRAMME
FOOD STANDARDS AGENCY - Westminster,FOOD STANDARDS AGENCY - Westminster,2019-11-12,EXP - PURCHASE OF GOODS/SERVICES - SUBSISTENCE,Regulatory Delivery,CORPORATE TRAVEL MANAGEMENT NORTH LTD,1011711160,1003.43,Travel & Subsistence Week 44,BD1 5HQ,ADMIN
FOOD STANDARDS AGENCY - Westminster,FOOD STANDARDS AGENCY - Westminster,2019-11-12,EXP - PURCHASE OF GOODS/SERVICES - RAIL TRAVEL,RDOT,CORPORATE TRAVEL MANAGEMENT NORTH LTD,1011711160,1000,Travel & Subsistence Week 44,BD1 5HQ,PROGRAMME
FOOD STANDARDS AGENCY - Westminster,FOOD STANDARDS AGENCY - Westminster,2019-11-12,EXP - PURCHASE OF GOODS/SERVICES - RAIL TRAVEL,Chief Scientific Advisors team,CORPORATE TRAVEL MANAGEMENT NORTH LTD,1011711160,742.05,Travel & Subsistence Week 44,BD1 5HQ,ADMIN
FOOD STANDARDS AGENCY - Westminster,FOOD STANDARDS AGENCY - Westminster,2019-11-12,EXP - PURCHASE OF GOODS/SERVICES - RAIL TRAVEL,Legal Branch A & Investigations,CORPORATE TRAVEL MANAGEMENT NORTH LTD,1011711160,735,Travel & Subsistence Week 44,BD1 5HQ,ADMIN
FOOD STANDARDS AGENCY - Westminster,FOOD STANDARDS AGENCY - Westminster,2019-11-12,EXP - PURCHASE OF GOODS/SERVICES - SUBSISTENCE,Corporate Support Unit,CORPORATE TRAVEL MANAGEMENT NORTH LTD,1011711160,721.41,Travel & Subsistence Week 44,BD1 5HQ,ADMIN
FOOD STANDARDS AGENCY - Westminster,FOOD STANDARDS AGENCY - Westminster,2019-11-12,EXP - PURCHASE OF GOODS/SERVICES - SUBSISTENCE,Non Meat Field Ops,CORPORATE TRAVEL MANAGEMENT NORTH LTD,1011711160,719.87,Travel & Subsistence Week 44,BD1 5HQ,PROGRAMME
FOOD STANDARDS AGENCY - Westminster,FOOD STANDARDS AGENCY - Westminster,2019-11-12,EXP - PURCHASE OF GOODS/SERVICES - RAIL TRAVEL,Wales and West 4 ,CORPORATE TRAVEL MANAGEMENT NORTH LTD,1011711160,618.75,Travel & Subsistence Week 44,BD1 5HQ,PROGRAMME
FOOD STANDARDS AGENCY - Westminster,FOOD STANDARDS AGENCY - Westminster,2019-11-12,EXP - PURCHASE OF GOODS/SERVICES - RAIL TRAVEL,IT Information & Knowledge Management,CORPORATE TRAVEL MANAGEMENT NORTH LTD,1011711160,614.95,Travel & Subsistence Week 44,BD1 5HQ,ADMIN
FOOD STANDARDS AGENCY - Westminster,FOOD STANDARDS AGENCY - Westminster,2019-11-12,EXP - PURCHASE OF GOODS/SERVICES - RAIL TRAVEL,Comms Directors Office,CORPORATE TRAVEL MANAGEMENT NORTH LTD,1011711160,574.85,Travel & Subsistence Week 44,BD1 5HQ,ADMIN
FOOD STANDARDS AGENCY - Westminster,FOOD STANDARDS AGENCY - Westminster,2019-11-12,EXP - PURCHASE OF GOODS/SERVICES - RAIL TRAVEL,Planning and Performance,CORPORATE TRAVEL MANAGEMENT NORTH LTD,1011711160,574.45,Travel & Subsistence Week 44,BD1 5HQ,ADMIN
FOOD STANDARDS AGENCY - Westminster,FOOD STANDARDS AGENCY - Westminster,2019-11-12,EXP - PURCHASE OF GOODS/SERVICES - RAIL TRAVEL,Finance Director & Branch,CORPORATE TRAVEL MANAGEMENT NORTH LTD,1011711160,556.4,Travel & Subsistence Week 44,BD1 5HQ,ADMIN
FOOD STANDARDS AGENCY - Westminster,FOOD STANDARDS AGENCY - Westminster,2019-11-12,EXP - PURCHASE OF GOODS/SERVICES - SUBSISTENCE,Operational Delivery,CORPORATE TRAVEL MANAGEMENT NORTH LTD,1011711160,552.39,Travel & Subsistence Week 44,BD1 5HQ,PROGRAMME
FOOD STANDARDS AGENCY - Westminster,FOOD STANDARDS AGENCY - Westminster,2019-11-12,EXP - PURCHASE OF GOODS/SERVICES - RAIL TRAVEL,Internal Audit,CORPORATE TRAVEL MANAGEMENT NORTH LTD,1011711160,524.9,Travel & Subsistence Week 44,BD1 5HQ,ADMIN
FOOD STANDARDS AGENCY - Westminster,FOOD STANDARDS AGENCY - Westminster,2019-11-12,EXP - PURCHASE OF GOODS/SERVICES - RAIL TRAVEL,Chief Executive & Private Office,CORPORATE TRAVEL MANAGEMENT NORTH LTD,1011711160,491.95,Travel & Subsistence Week 44,BD1 5HQ,ADMIN
FOOD STANDARDS AGENCY - Westminster,FOOD STANDARDS AGENCY - Westminster,2019-11-12,EXP - PURCHASE OF GOODS/SERVICES - RAIL TRAVEL,"Novel Foods, GM, Radiological and Feed Additives",CORPORATE TRAVEL MANAGEMENT NORTH LTD,1011711160,482.4,Travel & Subsistence Week 44,BD1 5HQ,ADMIN
FOOD STANDARDS AGENCY - Westminster,FOOD STANDARDS AGENCY - Westminster,2019-11-12,EXP - PURCHASE OF GOODS/SERVICES - SUBSISTENCE,Chief Scientific Advisors team,CORPORATE TRAVEL MANAGEMENT NORTH LTD,1011711160,461.53,Travel & Subsistence Week 44,BD1 5HQ,ADMIN
FOOD STANDARDS AGENCY - Westminster,FOOD STANDARDS AGENCY - Westminster,2019-11-12,EXP - PURCHASE OF GOODS/SERVICES - RAIL TRAVEL,Non Meat Field Ops,CORPORATE TRAVEL MANAGEMENT NORTH LTD,1011711160,448.6,Travel & Subsistence Week 44,BD1 5HQ,PROGRAMME
FOOD STANDARDS AGENCY - Westminster,FOOD STANDARDS AGENCY - Westminster,2019-11-12,EXP - PURCHASE OF GOODS/SERVICES - AIR TRAVEL,RDOT,CORPORATE TRAVEL MANAGEMENT NORTH LTD,1011711160,442.6,Travel & Subsistence Week 44,BD1 5HQ,PROGRAMME
FOOD STANDARDS AGENCY - Westminster,FOOD STANDARDS AGENCY - Westminster,2019-11-12,EXP - PURCHASE OF GOODS/SERVICES - RAIL TRAVEL,Food Crime Unit - Prog,CORPORATE TRAVEL MANAGEMENT NORTH LTD,1011711160,438.4,Travel & Subsistence Week 44,BD1 5HQ,PROGRAMME
FOOD STANDARDS AGENCY - Westminster,FOOD STANDARDS AGENCY - Westminster,2019-11-12,EXP - PURCHASE OF GOODS/SERVICES - SUBSISTENCE,Wales and West 2 (Wales),CORPORATE TRAVEL MANAGEMENT NORTH LTD,1011711160,432.9,Travel & Subsistence Week 44,BD1 5HQ,PROGRAMME
FOOD STANDARDS AGENCY - Westminster,FOOD STANDARDS AGENCY - Westminster,2019-11-12,EXP - PURCHASE OF GOODS/SERVICES - RAIL TRAVEL,Imports & Exports Team (Admin),CORPORATE TRAVEL MANAGEMENT NORTH LTD,1011711160,352.95,Travel & Subsistence Week 44,BD1 5HQ,ADMIN
FOOD STANDARDS AGENCY - Westminster,FOOD STANDARDS AGENCY - Westminster,2019-11-12,EXP - PURCHASE OF GOODS/SERVICES - RAIL TRAVEL,North 1,CORPORATE TRAVEL MANAGEMENT NORTH LTD,1011711160,349.7,Travel & Subsistence Week 44,BD1 5HQ,PROGRAMME
FOOD STANDARDS AGENCY - Westminster,FOOD STANDARDS AGENCY - Westminster,2019-11-12,EXP - PURCHASE OF GOODS/SERVICES - FOREIGN SUBSISTENCE,Regulating our Future,CORPORATE TRAVEL MANAGEMENT NORTH LTD,1011711160,304.93,Travel & Subsistence Week 44,BD1 5HQ,ADMIN
FOOD STANDARDS AGENCY - Westminster,FOOD STANDARDS AGENCY - Westminster,2019-11-12,EXP - PURCHASE OF GOODS/SERVICES - RAIL TRAVEL,Programme and project delivery,CORPORATE TRAVEL MANAGEMENT NORTH LTD,1011711160,298.45,Travel & Subsistence Week 44,BD1 5HQ,ADMIN
FOOD STANDARDS AGENCY - Westminster,FOOD STANDARDS AGENCY - Westminster,2019-11-12,EXP - PURCHASE OF GOODS/SERVICES - SUBSISTENCE,Digital,CORPORATE TRAVEL MANAGEMENT NORTH LTD,1011711160,285.96,Travel & Subsistence Week 44,BD1 5HQ,ADMIN
FOOD STANDARDS AGENCY - Westminster,FOOD STANDARDS AGENCY - Westminster,2019-11-12,EXP - PURCHASE OF GOODS/SERVICES - RAIL TRAVEL,Analytics Unit,CORPORATE TRAVEL MANAGEMENT NORTH LTD,1011711160,267.1,Travel & Subsistence Week 44,BD1 5HQ,ADMIN
FOOD STANDARDS AGENCY - Westminster,FOOD STANDARDS AGENCY - Westminster,2019-11-12,EXP - PURCHASE OF GOODS/SERVICES - RAIL TRAVEL,East 4,CORPORATE TRAVEL MANAGEMENT NORTH LTD,1011711160,262.5,Travel & Subsistence Week 44,BD1 5HQ,PROGRAMME
FOOD STANDARDS AGENCY - Westminster,FOOD STANDARDS AGENCY - Westminster,2019-11-12,EXP - PURCHASE OF GOODS/SERVICES - SUBSISTENCE,Legal Branch A & Investigations,CORPORATE TRAVEL MANAGEMENT NORTH LTD,1011711160,256.85,Travel & Subsistence Week 44,BD1 5HQ,ADMIN
FOOD STANDARDS AGENCY - Westminster,FOOD STANDARDS AGENCY - Westminster,2019-11-12,EXP - PURCHASE OF GOODS/SERVICES - AIR TRAVEL,Analytics Unit,CORPORATE TRAVEL MANAGEMENT NORTH LTD,1011711160,243.98,Travel & Subsistence Week 44,BD1 5HQ,ADMIN
FOOD STANDARDS AGENCY - Westminster,FOOD STANDARDS AGENCY - Westminster,2019-11-12,EXP - PURCHASE OF GOODS/SERVICES - SUBSISTENCE,Analytics Unit,CORPORATE TRAVEL MANAGEMENT NORTH LTD,1011711160,241.87,Travel & Subsistence Week 44,BD1 5HQ,ADMIN
FOOD STANDARDS AGENCY - Westminster,FOOD STANDARDS AGENCY - Westminster,2019-11-12,EXP - PURCHASE OF GOODS/SERVICES - SUBSISTENCE,"Animal Feed, Foodborne Disease and Allergy (AFFDA)",CORPORATE TRAVEL MANAGEMENT NORTH LTD,1011711160,240.42,Travel & Subsistence Week 44,BD1 5HQ,ADMIN
FOOD STANDARDS AGENCY - Westminster,FOOD STANDARDS AGENCY - Westminster,2019-11-12,EXP - PURCHASE OF GOODS/SERVICES - SUBSISTENCE,East 1,CORPORATE TRAVEL MANAGEMENT NORTH LTD,1011711160,237.88,Travel & Subsistence Week 44,BD1 5HQ,PROGRAMME
FOOD STANDARDS AGENCY - Westminster,FOOD STANDARDS AGENCY - Westminster,2019-11-12,EXP - PURCHASE OF GOODS/SERVICES - AIR TRAVEL,Scientific Methods & Laboratory Policy,CORPORATE TRAVEL MANAGEMENT NORTH LTD,1011711160,227.48,Travel & Subsistence Week 44,BD1 5HQ,ADMIN
FOOD STANDARDS AGENCY - Westminster,FOOD STANDARDS AGENCY - Westminster,2019-11-12,EXP - PURCHASE OF GOODS/SERVICES - AIR TRAVEL,Legal Branch A & Investigations,CORPORATE TRAVEL MANAGEMENT NORTH LTD,1011711160,210.13,Travel & Subsistence Week 44,BD1 5HQ,ADMIN
FOOD STANDARDS AGENCY - Westminster,FOOD STANDARDS AGENCY - Westminster,2019-11-12,EXP - PURCHASE OF GOODS/SERVICES - RAIL TRAVEL,IT Service Delivery,CORPORATE TRAVEL MANAGEMENT NORTH LTD,1011711160,193.5,Travel & Subsistence Week 44,BD1 5HQ,ADMIN
FOOD STANDARDS AGENCY - Westminster,FOOD STANDARDS AGENCY - Westminster,2019-11-12,EXP - PURCHASE OF GOODS/SERVICES - SUBSISTENCE,Wales and West 4 ,CORPORATE TRAVEL MANAGEMENT NORTH LTD,1011711160,186.42,Travel & Subsistence Week 44,BD1 5HQ,PROGRAMME
FOOD STANDARDS AGENCY - Westminster,FOOD STANDARDS AGENCY - Westminster,2019-11-12,EXP - PURCHASE OF GOODS/SERVICES - SUBSISTENCE,Food Crime Unit - Prog,CORPORATE TRAVEL MANAGEMENT NORTH LTD,1011711160,184.32,Travel & Subsistence Week 44,BD1 5HQ,PROGRAMME
FOOD STANDARDS AGENCY - Westminster,FOOD STANDARDS AGENCY - Westminster,2019-11-12,EXP - PURCHASE OF GOODS/SERVICES - RAIL TRAVEL,Procurement,CORPORATE TRAVEL MANAGEMENT NORTH LTD,1011711160,183.5,Travel & Subsistence Week 44,BD1 5HQ,ADMIN
FOOD STANDARDS AGENCY - Westminster,FOOD STANDARDS AGENCY - Westminster,2019-11-12,EXP - PURCHASE OF GOODS/SERVICES - RAIL TRAVEL,General Food Hygiene,CORPORATE TRAVEL MANAGEMENT NORTH LTD,1011711160,180.65,Travel & Subsistence Week 44,BD1 5HQ,ADMIN
FOOD STANDARDS AGENCY - Westminster,FOOD STANDARDS AGENCY - Westminster,2019-11-12,EXP - PURCHASE OF GOODS/SERVICES - SUBSISTENCE,RDOT,CORPORATE TRAVEL MANAGEMENT NORTH LTD,1011711160,174.25,Travel & Subsistence Week 44,BD1 5HQ,PROGRAMME
FOOD STANDARDS AGENCY - Westminster,FOOD STANDARDS AGENCY - Westminster,2019-11-12,EXP - PURCHASE OF GOODS/SERVICES - SUBSISTENCE,"Novel Foods, GM, Radiological and Feed Additives",CORPORATE TRAVEL MANAGEMENT NORTH LTD,1011711160,171.56,Travel & Subsistence Week 44,BD1 5HQ,ADMIN
FOOD STANDARDS AGENCY - Westminster,FOOD STANDARDS AGENCY - Westminster,2019-11-12,EXP - PURCHASE OF GOODS/SERVICES - SUBSISTENCE,Comms Directors Office,CORPORATE TRAVEL MANAGEMENT NORTH LTD,1011711160,163.57,Travel & Subsistence Week 44,BD1 5HQ,ADMIN
FOOD STANDARDS AGENCY - Westminster,FOOD STANDARDS AGENCY - Westminster,2019-11-12,EXP - PURCHASE OF GOODS/SERVICES - SUBSISTENCE,IT Service Delivery,CORPORATE TRAVEL MANAGEMENT NORTH LTD,1011711160,158.67,Travel & Subsistence Week 44,BD1 5HQ,ADMIN
FOOD STANDARDS AGENCY - Westminster,FOOD STANDARDS AGENCY - Westminster,2019-11-12,EXP - PURCHASE OF GOODS/SERVICES - RAIL TRAVEL,Food Crime Unit - Admin,CORPORATE TRAVEL MANAGEMENT NORTH LTD,1011711160,151.9,Travel & Subsistence Week 44,BD1 5HQ,ADMIN
FOOD STANDARDS AGENCY - Westminster,FOOD STANDARDS AGENCY - Westminster,2019-11-12,EXP - PURCHASE OF GOODS/SERVICES - RAIL TRAVEL,Wales and West 2 (Wales),CORPORATE TRAVEL MANAGEMENT NORTH LTD,1011711160,145.85,Travel & Subsistence Week 44,BD1 5HQ,PROGRAMME
FOOD STANDARDS AGENCY - Westminster,FOOD STANDARDS AGENCY - Westminster,2019-11-12,EXP - PURCHASE OF GOODS/SERVICES - RAIL TRAVEL,East 3,CORPORATE TRAVEL MANAGEMENT NORTH LTD,1011711160,132.25,Travel & Subsistence Week 44,BD1 5HQ,PROGRAMME
FOOD STANDARDS AGENCY - Westminster,FOOD STANDARDS AGENCY - Westminster,2019-11-12,EXP - PURCHASE OF GOODS/SERVICES - RAIL TRAVEL,Wales and West 4 ,CORPORATE TRAVEL MANAGEMENT NORTH LTD,1011711160,130.8,Travel & Subsistence Week 44,BD1 5HQ,PROGRAMME
FOOD STANDARDS AGENCY - Westminster,FOOD STANDARDS AGENCY - Westminster,2019-11-12,EXP - PURCHASE OF GOODS/SERVICES - SUBSISTENCE,Planning and Performance,CORPORATE TRAVEL MANAGEMENT NORTH LTD,1011711160,120.21,Travel & Subsistence Week 44,BD1 5HQ,ADMIN
FOOD STANDARDS AGENCY - Westminster,FOOD STANDARDS AGENCY - Westminster,2019-11-12,EXP - PURCHASE OF GOODS/SERVICES - AIR TRAVEL,NFCU Phase 2,CORPORATE TRAVEL MANAGEMENT NORTH LTD,1011711160,115.67,Travel & Subsistence Week 44,BD1 5HQ,PROGRAMME
FOOD STANDARDS AGENCY - Westminster,FOOD STANDARDS AGENCY - Westminster,2019-11-12,EXP - PURCHASE OF GOODS/SERVICES - RAIL TRAVEL,North 2,CORPORATE TRAVEL MANAGEMENT NORTH LTD,1011711160,114.8,Travel & Subsistence Week 44,BD1 5HQ,PROGRAMME
FOOD STANDARDS AGENCY - Westminster,FOOD STANDARDS AGENCY - Westminster,2019-11-12,EXP - PURCHASE OF GOODS/SERVICES - RAIL TRAVEL,Wales and West 2 (England),CORPORATE TRAVEL MANAGEMENT NORTH LTD,1011711160,111.5,Travel & Subsistence Week 44,BD1 5HQ,PROGRAMME
FOOD STANDARDS AGENCY - Westminster,FOOD STANDARDS AGENCY - Westminster,2019-11-12,EXP - PURCHASE OF GOODS/SERVICES - SUBSISTENCE,Wales and West 1 (Wales),CORPORATE TRAVEL MANAGEMENT NORTH LTD,1011711160,110.04,Travel & Subsistence Week 44,BD1 5HQ,PROGRAMME
FOOD STANDARDS AGENCY - Westminster,FOOD STANDARDS AGENCY - Westminster,2019-11-12,EXP - PURCHASE OF GOODS/SERVICES - RAIL TRAVEL,Regulatory & International,CORPORATE TRAVEL MANAGEMENT NORTH LTD,1011711160,109.45,Travel & Subsistence Week 44,BD1 5HQ,ADMIN
FOOD STANDARDS AGENCY - Westminster,FOOD STANDARDS AGENCY - Westminster,2019-11-12,EXP - PURCHASE OF GOODS/SERVICES - RAIL TRAVEL,"Animal Feed, Foodborne Disease and Allergy (AFFDA)",CORPORATE TRAVEL MANAGEMENT NORTH LTD,1011711160,109,Travel & Subsistence Week 44,BD1 5HQ,ADMIN
FOOD STANDARDS AGENCY - Westminster,FOOD STANDARDS AGENCY - Westminster,2019-11-12,EXP - PURCHASE OF GOODS/SERVICES - RAIL TRAVEL,Resilience - Admin,CORPORATE TRAVEL MANAGEMENT NORTH LTD,1011711160,108.6,Travel & Subsistence Week 44,BD1 5HQ,ADMIN
FOOD STANDARDS AGENCY - Westminster,FOOD STANDARDS AGENCY - Westminster,2019-11-12,EXP - PURCHASE OF GOODS/SERVICES - AIR TRAVEL,Comms Directors Office,CORPORATE TRAVEL MANAGEMENT NORTH LTD,1011711160,108.49,Travel & Subsistence Week 44,BD1 5HQ,ADMIN
FOOD STANDARDS AGENCY - Westminster,FOOD STANDARDS AGENCY - Westminster,2019-11-12,EXP - PURCHASE OF GOODS/SERVICES - SUBSISTENCE,Procurement,CORPORATE TRAVEL MANAGEMENT NORTH LTD,1011711160,104.96,Travel & Subsistence Week 44,BD1 5HQ,ADMIN
FOOD STANDARDS AGENCY - Westminster,FOOD STANDARDS AGENCY - Westminster,2019-11-12,EXP - PURCHASE OF GOODS/SERVICES -  FOREIGN AIR TRAVEL,Chief Scientific Advisors team,CORPORATE TRAVEL MANAGEMENT NORTH LTD,1011711160,101.5,Travel & Subsistence Week 44,BD1 5HQ,ADMIN
FOOD STANDARDS AGENCY - Westminster,FOOD STANDARDS AGENCY - Westminster,2019-11-12,EXP - PURCHASE OF GOODS/SERVICES - RAIL TRAVEL,"Food Additives, Flavourings, and Food Contact Materials",CORPORATE TRAVEL MANAGEMENT NORTH LTD,1011711160,101.45,Travel & Subsistence Week 44,BD1 5HQ,ADMIN
FOOD STANDARDS AGENCY - Westminster,FOOD STANDARDS AGENCY - Westminster,2019-11-12,EXP - PURCHASE OF GOODS/SERVICES - RAIL TRAVEL,Wales and West 1 (England),CORPORATE TRAVEL MANAGEMENT NORTH LTD,1011711160,80.5,Travel & Subsistence Week 44,BD1 5HQ,PROGRAMME
FOOD STANDARDS AGENCY - Westminster,FOOD STANDARDS AGENCY - Westminster,2019-11-12,EXP - PURCHASE OF GOODS/SERVICES - RAIL TRAVEL,Wales and West 1 (Wales),CORPORATE TRAVEL MANAGEMENT NORTH LTD,1011711160,79.6,Travel & Subsistence Week 44,BD1 5HQ,PROGRAMME
FOOD STANDARDS AGENCY - Westminster,FOOD STANDARDS AGENCY - Westminster,2019-11-12,EXP - PURCHASE OF GOODS/SERVICES - SUBSISTENCE,Organisational Development,CORPORATE TRAVEL MANAGEMENT NORTH LTD,1011711160,79.46,Travel & Subsistence Week 44,BD1 5HQ,ADMIN
FOOD STANDARDS AGENCY - Westminster,FOOD STANDARDS AGENCY - Westminster,2019-11-12,EXP - PURCHASE OF GOODS/SERVICES - SUBSISTENCE,Chief Executive & Private Office,CORPORATE TRAVEL MANAGEMENT NORTH LTD,1011711160,75.96,Travel & Subsistence Week 44,BD1 5HQ,ADMIN
FOOD STANDARDS AGENCY - Westminster,FOOD STANDARDS AGENCY - Westminster,2019-11-12,EXP - PURCHASE OF GOODS/SERVICES - SUBSISTENCE,Finance Director & Branch,CORPORATE TRAVEL MANAGEMENT NORTH LTD,1011711160,75.96,Travel & Subsistence Week 44,BD1 5HQ,ADMIN
FOOD STANDARDS AGENCY - Westminster,FOOD STANDARDS AGENCY - Westminster,2019-11-12,EXP - PURCHASE OF GOODS/SERVICES - SUBSISTENCE,East 4,CORPORATE TRAVEL MANAGEMENT NORTH LTD,1011711160,75.96,Travel & Subsistence Week 44,BD1 5HQ,PROGRAMME
FOOD STANDARDS AGENCY - Westminster,FOOD STANDARDS AGENCY - Westminster,2019-11-12,EXP - PURCHASE OF GOODS/SERVICES - TAXI SERVICES,Regulatory Delivery,CORPORATE TRAVEL MANAGEMENT NORTH LTD,1011711160,72.52,Travel & Subsistence Week 44,BD1 5HQ,ADMIN
FOOD STANDARDS AGENCY - Westminster,FOOD STANDARDS AGENCY - Westminster,2019-11-12,EXP - PURCHASE OF GOODS/SERVICES - SUBSISTENCE,General Food Hygiene,CORPORATE TRAVEL MANAGEMENT NORTH LTD,1011711160,65.96,Travel & Subsistence Week 44,BD1 5HQ,ADMIN
FOOD STANDARDS AGENCY - Westminster,FOOD STANDARDS AGENCY - Westminster,2019-11-12,EXP - PURCHASE OF GOODS/SERVICES - RAIL TRAVEL,East 1,CORPORATE TRAVEL MANAGEMENT NORTH LTD,1011711160,61.65,Travel & Subsistence Week 44,BD1 5HQ,PROGRAMME
FOOD STANDARDS AGENCY - Westminster,FOOD STANDARDS AGENCY - Westminster,2019-11-12,EXP - PURCHASE OF GOODS/SERVICES - RAIL TRAVEL,East 2,CORPORATE TRAVEL MANAGEMENT NORTH LTD,1011711160,60.9,Travel & Subsistence Week 44,BD1 5HQ,PROGRAMME
FOOD STANDARDS AGENCY - Westminster,FOOD STANDARDS AGENCY - Westminster,2019-11-12,EXP - PURCHASE OF GOODS/SERVICES - SUBSISTENCE,Wales and West 3 ,CORPORATE TRAVEL MANAGEMENT NORTH LTD,1011711160,48.43,Travel & Subsistence Week 44,BD1 5HQ,PROGRAMME
FOOD STANDARDS AGENCY - Westminster,FOOD STANDARDS AGENCY - Westminster,2019-11-12,EXP - PURCHASE OF GOODS/SERVICES - OTHER TRAVEL,Organisational Development,CORPORATE TRAVEL MANAGEMENT NORTH LTD,1011711160,47.15,Travel & Subsistence Week 44,BD1 5HQ,ADMIN
FOOD STANDARDS AGENCY - Westminster,FOOD STANDARDS AGENCY - Westminster,2019-11-12,EXP - PURCHASE OF GOODS/SERVICES - AIR TRAVEL,Organisational Development,CORPORATE TRAVEL MANAGEMENT NORTH LTD,1011711160,42.22,Travel & Subsistence Week 44,BD1 5HQ,ADMIN
FOOD STANDARDS AGENCY - Westminster,FOOD STANDARDS AGENCY - Westminster,2019-11-12,EXP - PURCHASE OF GOODS/SERVICES - SUBSISTENCE,Scientific Methods & Laboratory Policy,CORPORATE TRAVEL MANAGEMENT NORTH LTD,1011711160,37.96,Travel & Subsistence Week 44,BD1 5HQ,ADMIN
FOOD STANDARDS AGENCY - Westminster,FOOD STANDARDS AGENCY - Westminster,2019-11-12,EXP - PURCHASE OF GOODS/SERVICES - OTHER TRAVEL,Food Crime Unit - Admin,CORPORATE TRAVEL MANAGEMENT NORTH LTD,1011711160,37.7,Travel & Subsistence Week 44,BD1 5HQ,ADMIN
FOOD STANDARDS AGENCY - Westminster,FOOD STANDARDS AGENCY - Westminster,2019-11-12,EXP - PURCHASE OF GOODS/SERVICES - OTHER TRAVEL,Wales and West 1 (England),CORPORATE TRAVEL MANAGEMENT NORTH LTD,1011711160,31.85,Travel & Subsistence Week 44,BD1 5HQ,PROGRAMME
FOOD STANDARDS AGENCY - Westminster,FOOD STANDARDS AGENCY - Westminster,2019-11-12,EXP - PURCHASE OF GOODS/SERVICES - TAXI SERVICES,Chief Scientific Advisors team,CORPORATE TRAVEL MANAGEMENT NORTH LTD,1011711160,26.74,Travel & Subsistence Week 44,BD1 5HQ,ADMIN
FOOD STANDARDS AGENCY - Westminster,FOOD STANDARDS AGENCY - Westminster,2019-11-12,EXP - PURCHASE OF GOODS/SERVICES - OTHER TRAVEL,NFCU Phase 2,CORPORATE TRAVEL MANAGEMENT NORTH LTD,1011711160,21.15,Travel & Subsistence Week 44,BD1 5HQ,PROGRAMME
FOOD STANDARDS AGENCY - Westminster,FOOD STANDARDS AGENCY - Westminster,2019-11-12,EXP - PURCHASE OF GOODS/SERVICES - RAIL TRAVEL,Digital,CORPORATE TRAVEL MANAGEMENT NORTH LTD,1011711160,16.9,Travel & Subsistence Week 44,BD1 5HQ,ADMIN
FOOD STANDARDS AGENCY - Westminster,FOOD STANDARDS AGENCY - Westminster,2019-11-12,EXP - PURCHASE OF GOODS/SERVICES - TAXI SERVICES,Legal Branch A & Investigations,CORPORATE TRAVEL MANAGEMENT NORTH LTD,1011711160,12.73,Travel & Subsistence Week 44,BD1 5HQ,ADMIN
FOOD STANDARDS AGENCY - Westminster,FOOD STANDARDS AGENCY - Westminster,2019-11-12,EXP - PURCHASE OF GOODS/SERVICES - RAIL TRAVEL,North 4,CORPORATE TRAVEL MANAGEMENT NORTH LTD,1011711160,-47.95,Travel & Subsistence Week 44,BD1 5HQ,PROGRAMME
FOOD STANDARDS AGENCY - Westminster,FOOD STANDARDS AGENCY - Westminster,2019-11-14,EXP - SHORT-TERM CONTRACT & AGENCY STAFF - FULL COST,RDOT,ALEXANDER MANN SOLUTIONS LTD-2WM,1011711185,9238.96,TEMPORARY STAFF,EC2N 3AQ,PROGRAMME
FOOD STANDARDS AGENCY - Westminster,FOOD STANDARDS AGENCY - Westminster,2019-11-14,EXP - SHORT-TERM CONTRACT & AGENCY STAFF - FULL COST,Operational Delivery,ALEXANDER MANN SOLUTIONS LTD-2WM,1011711185,5296.98,TEMPORARY STAFF,EC2N 3AQ,PROGRAMME
FOOD STANDARDS AGENCY - Westminster,FOOD STANDARDS AGENCY - Westminster,2019-11-14,EXP - SHORT-TERM CONTRACT & AGENCY STAFF - FULL COST,Finance Director & Branch,ALEXANDER MANN SOLUTIONS LTD-2WM,1011711185,3019.62,TEMPORARY STAFF,EC2N 3AQ,ADMIN
FOOD STANDARDS AGENCY - Westminster,FOOD STANDARDS AGENCY - Westminster,2019-11-14,EXP - SHORT-TERM CONTRACT & AGENCY STAFF - FULL COST,Programme and project delivery,ALEXANDER MANN SOLUTIONS LTD-2WM,1011711185,2048.41,TEMPORARY STAFF,EC2N 3AQ,ADMIN
FOOD STANDARDS AGENCY - Westminster,FOOD STANDARDS AGENCY - Westminster,2019-11-14,EXP - SHORT-TERM CONTRACT & AGENCY STAFF - FULL COST,Imports & Exports Team (Admin),ALEXANDER MANN SOLUTIONS LTD-2WM,1011711185,1633.68,TEMPORARY STAFF,EC2N 3AQ,ADMIN
FOOD STANDARDS AGENCY - Westminster,FOOD STANDARDS AGENCY - Westminster,2019-11-14,EXP - SHORT-TERM CONTRACT & AGENCY STAFF - FULL COST,Finance Director & Branch,ALEXANDER MANN SOLUTIONS LTD-2WM,1011711185,655.34,TEMPORARY STAFF,EC2N 3AQ,ADMIN
FOOD STANDARDS AGENCY - Westminster,FOOD STANDARDS AGENCY - Westminster,2019-11-14,EXP - SHORT-TERM CONTRACT & AGENCY STAFF - FULL COST,Corporate Support Unit,ALEXANDER MANN SOLUTIONS LTD-2WM,1011711185,601.92,TEMPORARY STAFF,EC2N 3AQ,ADMIN
FOOD STANDARDS AGENCY - Westminster,FOOD STANDARDS AGENCY - Westminster,2019-11-14,EXP - SHORT-TERM CONTRACT & AGENCY STAFF - FULL COST,Legal Branch A & Investigations,ALEXANDER MANN SOLUTIONS LTD-2WM,1011711185,441.06,TEMPORARY STAFF,EC2N 3AQ,ADMIN
FOOD STANDARDS AGENCY - Westminster,FOOD STANDARDS AGENCY - Westminster,2019-11-18,EXP - PURCHASE OF GOODS/SERVICES - RAIL TRAVEL,Operational Delivery,CORPORATE TRAVEL MANAGEMENT NORTH LTD,1011711223,3070,Travel & Subsistence Week 45,BD1 5HQ,PROGRAMME
FOOD STANDARDS AGENCY - Westminster,FOOD STANDARDS AGENCY - Westminster,2019-11-18,EXP - PURCHASE OF GOODS/SERVICES - RAIL TRAVEL,Organisational Development,CORPORATE TRAVEL MANAGEMENT NORTH LTD,1011711223,2834.9,Travel & Subsistence Week 45,BD1 5HQ,ADMIN
FOOD STANDARDS AGENCY - Westminster,FOOD STANDARDS AGENCY - Westminster,2019-11-18,EXP - PURCHASE OF GOODS/SERVICES - RAIL TRAVEL,Regulatory Delivery,CORPORATE TRAVEL MANAGEMENT NORTH LTD,1011711223,2826.4,Travel & Subsistence Week 45,BD1 5HQ,ADMIN
FOOD STANDARDS AGENCY - Westminster,FOOD STANDARDS AGENCY - Westminster,2019-11-18,EXP - PURCHASE OF GOODS/SERVICES - RAIL TRAVEL,RDOT,CORPORATE TRAVEL MANAGEMENT NORTH LTD,1011711223,2427.75,Travel & Subsistence Week 45,BD1 5HQ,PROGRAMME
FOOD STANDARDS AGENCY - Westminster,FOOD STANDARDS AGENCY - Westminster,2019-11-18,EXP - PURCHASE OF GOODS/SERVICES - RAIL TRAVEL,NFCU Phase 2,CORPORATE TRAVEL MANAGEMENT NORTH LTD,1011711223,2213.95,Travel & Subsistence Week 45,BD1 5HQ,PROGRAMME
FOOD STANDARDS AGENCY - Westminster,FOOD STANDARDS AGENCY - Westminster,2019-11-18,EXP - PURCHASE OF GOODS/SERVICES - SUBSISTENCE,Organisational Development,CORPORATE TRAVEL MANAGEMENT NORTH LTD,1011711223,1602.17,Travel & Subsistence Week 45,BD1 5HQ,ADMIN
FOOD STANDARDS AGENCY - Westminster,FOOD STANDARDS AGENCY - Westminster,2019-11-18,EXP - PURCHASE OF GOODS/SERVICES - SUBSISTENCE,Regulatory Delivery,CORPORATE TRAVEL MANAGEMENT NORTH LTD,1011711223,1485.02,Travel & Subsistence Week 45,BD1 5HQ,ADMIN
FOOD STANDARDS AGENCY - Westminster,FOOD STANDARDS AGENCY - Westminster,2019-11-18,EXP - PURCHASE OF GOODS/SERVICES - RAIL TRAVEL,Comms Directors Office,CORPORATE TRAVEL MANAGEMENT NORTH LTD,1011711223,1468,Travel & Subsistence Week 45,BD1 5HQ,ADMIN
FOOD STANDARDS AGENCY - Westminster,FOOD STANDARDS AGENCY - Westminster,2019-11-18,EXP - PURCHASE OF GOODS/SERVICES - RAIL TRAVEL,IT Information & Knowledge Management,CORPORATE TRAVEL MANAGEMENT NORTH LTD,1011711223,1408.9,Travel & Subsistence Week 45,BD1 5HQ,ADMIN
FOOD STANDARDS AGENCY - Westminster,FOOD STANDARDS AGENCY - Westminster,2019-11-18,EXP - PURCHASE OF GOODS/SERVICES - SUBSISTENCE,NFCU Phase 2,CORPORATE TRAVEL MANAGEMENT NORTH LTD,1011711223,1318.74,Travel & Subsistence Week 45,BD1 5HQ,PROGRAMME
FOOD STANDARDS AGENCY - Westminster,FOOD STANDARDS AGENCY - Westminster,2019-11-18,EXP - PURCHASE OF GOODS/SERVICES - SUBSISTENCE,Operational Delivery,CORPORATE TRAVEL MANAGEMENT NORTH LTD,1011711223,1318.62,Travel & Subsistence Week 45,BD1 5HQ,PROGRAMME
FOOD STANDARDS AGENCY - Westminster,FOOD STANDARDS AGENCY - Westminster,2019-11-18,EXP - PURCHASE OF GOODS/SERVICES - SUBSISTENCE,Non Meat Field Ops,CORPORATE TRAVEL MANAGEMENT NORTH LTD,1011711223,1180.07,Travel & Subsistence Week 45,BD1 5HQ,PROGRAMME
FOOD STANDARDS AGENCY - Westminster,FOOD STANDARDS AGENCY - Westminster,2019-11-18,EXP - PURCHASE OF GOODS/SERVICES - RAIL TRAVEL,Regulatory & International,CORPORATE TRAVEL MANAGEMENT NORTH LTD,1011711223,1177.85,Travel & Subsistence Week 45,BD1 5HQ,ADMIN
FOOD STANDARDS AGENCY - Westminster,FOOD STANDARDS AGENCY - Westminster,2019-11-18,EXP - PURCHASE OF GOODS/SERVICES - RAIL TRAVEL,"Novel Foods, GM, Radiological and Feed Additives",CORPORATE TRAVEL MANAGEMENT NORTH LTD,1011711223,1120.6,Travel & Subsistence Week 45,BD1 5HQ,ADMIN
FOOD STANDARDS AGENCY - Westminster,FOOD STANDARDS AGENCY - Westminster,2019-11-18,EXP - PURCHASE OF GOODS/SERVICES - SUBSISTENCE,Internal Audit,CORPORATE TRAVEL MANAGEMENT NORTH LTD,1011711223,1047.34,Travel & Subsistence Week 45,BD1 5HQ,ADMIN
FOOD STANDARDS AGENCY - Westminster,FOOD STANDARDS AGENCY - Westminster,2019-11-18,EXP - PURCHASE OF GOODS/SERVICES - SUBSISTENCE,Analytics Unit,CORPORATE TRAVEL MANAGEMENT NORTH LTD,1011711223,1013.52,Travel & Subsistence Week 45,BD1 5HQ,ADMIN
FOOD STANDARDS AGENCY - Westminster,FOOD STANDARDS AGENCY - Westminster,2019-11-18,EXP - PURCHASE OF GOODS/SERVICES - SUBSISTENCE,IT Information & Knowledge Management,CORPORATE TRAVEL MANAGEMENT NORTH LTD,1011711223,945.75,Travel & Subsistence Week 45,BD1 5HQ,ADMIN
FOOD STANDARDS AGENCY - Westminster,FOOD STANDARDS AGENCY - Westminster,2019-11-18,EXP - PURCHASE OF GOODS/SERVICES - RAIL TRAVEL,Chief Scientific Advisors team,CORPORATE TRAVEL MANAGEMENT NORTH LTD,1011711223,860.05,Travel & Subsistence Week 45,BD1 5HQ,ADMIN
FOOD STANDARDS AGENCY - Westminster,FOOD STANDARDS AGENCY - Westminster,2019-11-18,EXP - PURCHASE OF GOODS/SERVICES - SUBSISTENCE,RDOT,CORPORATE TRAVEL MANAGEMENT NORTH LTD,1011711223,806.49,Travel & Subsistence Week 45,BD1 5HQ,PROGRAMME
FOOD STANDARDS AGENCY - Westminster,FOOD STANDARDS AGENCY - Westminster,2019-11-18,EXP - PURCHASE OF GOODS/SERVICES - AIR TRAVEL,Organisational Development,CORPORATE TRAVEL MANAGEMENT NORTH LTD,1011711223,753.82,Travel & Subsistence Week 45,BD1 5HQ,ADMIN
FOOD STANDARDS AGENCY - Westminster,FOOD STANDARDS AGENCY - Westminster,2019-11-18,EXP - PURCHASE OF GOODS/SERVICES -  FOREIGN AIR TRAVEL,Chief Executive & Private Office,CORPORATE TRAVEL MANAGEMENT NORTH LTD,1011711223,709.26,Travel & Subsistence Week 45,BD1 5HQ,ADMIN
FOOD STANDARDS AGENCY - Westminster,FOOD STANDARDS AGENCY - Westminster,2019-11-18,EXP - PURCHASE OF GOODS/SERVICES - SUBSISTENCE,Comms Directors Office,CORPORATE TRAVEL MANAGEMENT NORTH LTD,1011711223,697.78,Travel & Subsistence Week 45,BD1 5HQ,ADMIN
FOOD STANDARDS AGENCY - Westminster,FOOD STANDARDS AGENCY - Westminster,2019-11-18,EXP - PURCHASE OF GOODS/SERVICES - RAIL TRAVEL,Finance Director & Branch,CORPORATE TRAVEL MANAGEMENT NORTH LTD,1011711223,668.75,Travel & Subsistence Week 45,BD1 5HQ,ADMIN
FOOD STANDARDS AGENCY - Westminster,FOOD STANDARDS AGENCY - Westminster,2019-11-18,EXP - PURCHASE OF GOODS/SERVICES - RAIL TRAVEL,Imports & Exports Team (Admin),CORPORATE TRAVEL MANAGEMENT NORTH LTD,1011711223,609.8,Travel & Subsistence Week 45,BD1 5HQ,ADMIN
FOOD STANDARDS AGENCY - Westminster,FOOD STANDARDS AGENCY - Westminster,2019-11-18,EXP - PURCHASE OF GOODS/SERVICES - RAIL TRAVEL,IT Service Delivery,CORPORATE TRAVEL MANAGEMENT NORTH LTD,1011711223,597,Travel & Subsistence Week 45,BD1 5HQ,ADMIN
FOOD STANDARDS AGENCY - Westminster,FOOD STANDARDS AGENCY - Westminster,2019-11-18,EXP - PURCHASE OF GOODS/SERVICES - RAIL TRAVEL,Non Meat Field Ops,CORPORATE TRAVEL MANAGEMENT NORTH LTD,1011711223,577.4,Travel & Subsistence Week 45,BD1 5HQ,PROGRAMME
FOOD STANDARDS AGENCY - Westminster,FOOD STANDARDS AGENCY - Westminster,2019-11-18,EXP - PURCHASE OF GOODS/SERVICES - SUBSISTENCE,Chief Scientific Advisors team,CORPORATE TRAVEL MANAGEMENT NORTH LTD,1011711223,571.65,Travel & Subsistence Week 45,BD1 5HQ,ADMIN
FOOD STANDARDS AGENCY - Westminster,FOOD STANDARDS AGENCY - Westminster,2019-11-18,EXP - PURCHASE OF GOODS/SERVICES - FOREIGN SUBSISTENCE,Chemical Contaminants and Residues,CORPORATE TRAVEL MANAGEMENT NORTH LTD,1011711223,487.06,Travel & Subsistence Week 45,BD1 5HQ,ADMIN
FOOD STANDARDS AGENCY - Westminster,FOOD STANDARDS AGENCY - Westminster,2019-11-18,EXP - PURCHASE OF GOODS/SERVICES - RAIL TRAVEL,Programme and project delivery,CORPORATE TRAVEL MANAGEMENT NORTH LTD,1011711223,404.1,Travel & Subsistence Week 45,BD1 5HQ,ADMIN
FOOD STANDARDS AGENCY - Westminster,FOOD STANDARDS AGENCY - Westminster,2019-11-18,EXP - PURCHASE OF GOODS/SERVICES - SUBSISTENCE,IT Service Delivery,CORPORATE TRAVEL MANAGEMENT NORTH LTD,1011711223,395.63,Travel & Subsistence Week 45,BD1 5HQ,ADMIN
FOOD STANDARDS AGENCY - Westminster,FOOD STANDARDS AGENCY - Westminster,2019-11-18,EXP - PURCHASE OF GOODS/SERVICES - RAIL TRAVEL,Risk Assessment - operations,CORPORATE TRAVEL MANAGEMENT NORTH LTD,1011711223,374.2,Travel & Subsistence Week 45,BD1 5HQ,ADMIN
FOOD STANDARDS AGENCY - Westminster,FOOD STANDARDS AGENCY - Westminster,2019-11-18,EXP - PURCHASE OF GOODS/SERVICES - RAIL TRAVEL,Legal Branch A & Investigations,CORPORATE TRAVEL MANAGEMENT NORTH LTD,1011711223,372.6,Travel & Subsistence Week 45,BD1 5HQ,ADMIN
FOOD STANDARDS AGENCY - Westminster,FOOD STANDARDS AGENCY - Westminster,2019-11-18,EXP - PURCHASE OF GOODS/SERVICES - RAIL TRAVEL,Planning and Performance,CORPORATE TRAVEL MANAGEMENT NORTH LTD,1011711223,357.9,Travel & Subsistence Week 45,BD1 5HQ,ADMIN
FOOD STANDARDS AGENCY - Westminster,FOOD STANDARDS AGENCY - Westminster,2019-11-18,EXP - PURCHASE OF GOODS/SERVICES - AIR TRAVEL,Food Incidents & Resilience - Prog,CORPORATE TRAVEL MANAGEMENT NORTH LTD,1011711223,349.32,Travel & Subsistence Week 45,BD1 5HQ,PROGRAMME
FOOD STANDARDS AGENCY - Westminster,FOOD STANDARDS AGENCY - Westminster,2019-11-18,EXP - PURCHASE OF GOODS/SERVICES - RAIL TRAVEL,Food Crime Unit - Prog,CORPORATE TRAVEL MANAGEMENT NORTH LTD,1011711223,346.25,Travel & Subsistence Week 45,BD1 5HQ,PROGRAMME
FOOD STANDARDS AGENCY - Westminster,FOOD STANDARDS AGENCY - Westminster,2019-11-18,EXP - PURCHASE OF GOODS/SERVICES - RAIL TRAVEL,Procurement,CORPORATE TRAVEL MANAGEMENT NORTH LTD,1011711223,311.9,Travel & Subsistence Week 45,BD1 5HQ,ADMIN
FOOD STANDARDS AGENCY - Westminster,FOOD STANDARDS AGENCY - Westminster,2019-11-18,EXP - PURCHASE OF GOODS/SERVICES - SUBSISTENCE,Corporate Support Unit,CORPORATE TRAVEL MANAGEMENT NORTH LTD,1011711223,288.16,Travel & Subsistence Week 45,BD1 5HQ,ADMIN
FOOD STANDARDS AGENCY - Westminster,FOOD STANDARDS AGENCY - Westminster,2019-11-18,EXP - PURCHASE OF GOODS/SERVICES - RAIL TRAVEL,Internal Audit,CORPORATE TRAVEL MANAGEMENT NORTH LTD,1011711223,268.8,Travel & Subsistence Week 45,BD1 5HQ,ADMIN
FOOD STANDARDS AGENCY - Westminster,FOOD STANDARDS AGENCY - Westminster,2019-11-18,EXP - PURCHASE OF GOODS/SERVICES - SUBSISTENCE,Food Incidents & Resilience - Prog,CORPORATE TRAVEL MANAGEMENT NORTH LTD,1011711223,249.6,Travel & Subsistence Week 45,BD1 5HQ,PROGRAMME
FOOD STANDARDS AGENCY - Westminster,FOOD STANDARDS AGENCY - Westminster,2019-11-18,EXP - PURCHASE OF GOODS/SERVICES - RAIL TRAVEL,Chemical Contaminants and Residues,CORPORATE TRAVEL MANAGEMENT NORTH LTD,1011711223,242.25,Travel & Subsistence Week 45,BD1 5HQ,ADMIN
FOOD STANDARDS AGENCY - Westminster,FOOD STANDARDS AGENCY - Westminster,2019-11-18,EXP - PURCHASE OF GOODS/SERVICES - OTHER FACILITIES COSTS,Chair & Deputy Chair,CORPORATE TRAVEL MANAGEMENT NORTH LTD,1011711223,232.16,Travel & Subsistence Week 45,BD1 5HQ,ADMIN
FOOD STANDARDS AGENCY - Westminster,FOOD STANDARDS AGENCY - Westminster,2019-11-18,EXP - PURCHASE OF GOODS/SERVICES - SUBSISTENCE,Wales and West 2 (Wales),CORPORATE TRAVEL MANAGEMENT NORTH LTD,1011711223,231.2,Travel & Subsistence Week 45,BD1 5HQ,PROGRAMME
FOOD STANDARDS AGENCY - Westminster,FOOD STANDARDS AGENCY - Westminster,2019-11-18,EXP - PURCHASE OF GOODS/SERVICES - AIR TRAVEL,"Meat Hygiene, ABP, TSE",CORPORATE TRAVEL MANAGEMENT NORTH LTD,1011711223,230.98,Travel & Subsistence Week 45,BD1 5HQ,ADMIN
FOOD STANDARDS AGENCY - Westminster,FOOD STANDARDS AGENCY - Westminster,2019-11-18,EXP - PURCHASE OF GOODS/SERVICES - RAIL TRAVEL,East 1,CORPORATE TRAVEL MANAGEMENT NORTH LTD,1011711223,218.9,Travel & Subsistence Week 45,BD1 5HQ,PROGRAMME
FOOD STANDARDS AGENCY - Westminster,FOOD STANDARDS AGENCY - Westminster,2019-11-18,EXP - PURCHASE OF GOODS/SERVICES - RAIL TRAVEL,Digital,CORPORATE TRAVEL MANAGEMENT NORTH LTD,1011711223,218.8,Travel & Subsistence Week 45,BD1 5HQ,ADMIN
FOOD STANDARDS AGENCY - Westminster,FOOD STANDARDS AGENCY - Westminster,2019-11-18,EXP - PURCHASE OF GOODS/SERVICES - SUBSISTENCE,North 4,CORPORATE TRAVEL MANAGEMENT NORTH LTD,1011711223,214.34,Travel & Subsistence Week 45,BD1 5HQ,PROGRAMME
FOOD STANDARDS AGENCY - Westminster,FOOD STANDARDS AGENCY - Westminster,2019-11-18,EXP - PURCHASE OF GOODS/SERVICES - RAIL TRAVEL,Corporate Support Unit,CORPORATE TRAVEL MANAGEMENT NORTH LTD,1011711223,165.6,Travel & Subsistence Week 45,BD1 5HQ,ADMIN
FOOD STANDARDS AGENCY - Westminster,FOOD STANDARDS AGENCY - Westminster,2019-11-18,EXP - PURCHASE OF GOODS/SERVICES - SUBSISTENCE,Legal Branch A & Investigations,CORPORATE TRAVEL MANAGEMENT NORTH LTD,1011711223,161.32,Travel & Subsistence Week 45,BD1 5HQ,ADMIN
FOOD STANDARDS AGENCY - Westminster,FOOD STANDARDS AGENCY - Westminster,2019-11-18,EXP - PURCHASE OF GOODS/SERVICES - RAIL TRAVEL,Food Crime Unit - Admin,CORPORATE TRAVEL MANAGEMENT NORTH LTD,1011711223,160.45,Travel & Subsistence Week 45,BD1 5HQ,ADMIN
FOOD STANDARDS AGENCY - Westminster,FOOD STANDARDS AGENCY - Westminster,2019-11-18,EXP - PURCHASE OF GOODS/SERVICES -  FOREIGN AIR TRAVEL,Risk Assessment - operations,CORPORATE TRAVEL MANAGEMENT NORTH LTD,1011711223,157.5,Travel & Subsistence Week 45,BD1 5HQ,ADMIN
FOOD STANDARDS AGENCY - Westminster,FOOD STANDARDS AGENCY - Westminster,2019-11-18,EXP - PURCHASE OF GOODS/SERVICES - RAIL TRAVEL,"Food Additives, Flavourings, and Food Contact Materials",CORPORATE TRAVEL MANAGEMENT NORTH LTD,1011711223,141.1,Travel & Subsistence Week 45,BD1 5HQ,ADMIN
FOOD STANDARDS AGENCY - Westminster,FOOD STANDARDS AGENCY - Westminster,2019-11-18,EXP - PURCHASE OF GOODS/SERVICES - RAIL TRAVEL,Chief Executive & Private Office,CORPORATE TRAVEL MANAGEMENT NORTH LTD,1011711223,136.75,Travel & Subsistence Week 45,BD1 5HQ,ADMIN
FOOD STANDARDS AGENCY - Westminster,FOOD STANDARDS AGENCY - Westminster,2019-11-18,EXP - PURCHASE OF GOODS/SERVICES - SUBSISTENCE,Digital,CORPORATE TRAVEL MANAGEMENT NORTH LTD,1011711223,135.36,Travel & Subsistence Week 45,BD1 5HQ,ADMIN
FOOD STANDARDS AGENCY - Westminster,FOOD STANDARDS AGENCY - Westminster,2019-11-18,EXP - PURCHASE OF GOODS/SERVICES - RAIL TRAVEL,East 3,CORPORATE TRAVEL MANAGEMENT NORTH LTD,1011711223,128.45,Travel & Subsistence Week 45,BD1 5HQ,PROGRAMME
FOOD STANDARDS AGENCY - Westminster,FOOD STANDARDS AGENCY - Westminster,2019-11-18,EXP - PURCHASE OF GOODS/SERVICES - SUBSISTENCE,Wales and West 4 ,CORPORATE TRAVEL MANAGEMENT NORTH LTD,1011711223,128.14,Travel & Subsistence Week 45,BD1 5HQ,PROGRAMME
FOOD STANDARDS AGENCY - Westminster,FOOD STANDARDS AGENCY - Westminster,2019-11-18,EXP - PURCHASE OF GOODS/SERVICES - AIR TRAVEL,Regulatory Delivery,CORPORATE TRAVEL MANAGEMENT NORTH LTD,1011711223,118.64,Travel & Subsistence Week 45,BD1 5HQ,ADMIN
FOOD STANDARDS AGENCY - Westminster,FOOD STANDARDS AGENCY - Westminster,2019-11-18,EXP - PURCHASE OF GOODS/SERVICES - FOREIGN SUBSISTENCE,"Novel Foods, GM, Radiological and Feed Additives",CORPORATE TRAVEL MANAGEMENT NORTH LTD,1011711223,110.89,Travel & Subsistence Week 45,BD1 5HQ,ADMIN
FOOD STANDARDS AGENCY - Westminster,FOOD STANDARDS AGENCY - Westminster,2019-11-18,EXP - PURCHASE OF GOODS/SERVICES - SUBSISTENCE,Wales and West 1 (Wales),CORPORATE TRAVEL MANAGEMENT NORTH LTD,1011711223,103.98,Travel & Subsistence Week 45,BD1 5HQ,PROGRAMME
FOOD STANDARDS AGENCY - Westminster,FOOD STANDARDS AGENCY - Westminster,2019-11-18,EXP - PURCHASE OF GOODS/SERVICES - SUBSISTENCE,"Meat Hygiene, ABP, TSE",CORPORATE TRAVEL MANAGEMENT NORTH LTD,1011711223,99.21,Travel & Subsistence Week 45,BD1 5HQ,ADMIN
FOOD STANDARDS AGENCY - Westminster,FOOD STANDARDS AGENCY - Westminster,2019-11-18,N/a,IT Information & Knowledge Management,CORPORATE TRAVEL MANAGEMENT NORTH LTD,1011711223,82.6,Travel & Subsistence Week 45,BD1 5HQ,ADMIN
FOOD STANDARDS AGENCY - Westminster,FOOD STANDARDS AGENCY - Westminster,2019-11-18,EXP - PURCHASE OF GOODS/SERVICES - RAIL TRAVEL,Food Incidents & Resilience - Prog,CORPORATE TRAVEL MANAGEMENT NORTH LTD,1011711223,76.1,Travel & Subsistence Week 45,BD1 5HQ,PROGRAMME
FOOD STANDARDS AGENCY - Westminster,FOOD STANDARDS AGENCY - Westminster,2019-11-18,EXP - PURCHASE OF GOODS/SERVICES - SUBSISTENCE,Food Crime Unit - Prog,CORPORATE TRAVEL MANAGEMENT NORTH LTD,1011711223,75.96,Travel & Subsistence Week 45,BD1 5HQ,PROGRAMME
FOOD STANDARDS AGENCY - Westminster,FOOD STANDARDS AGENCY - Westminster,2019-11-18,EXP - PURCHASE OF GOODS/SERVICES - SUBSISTENCE,Imports & Exports Team (Admin),CORPORATE TRAVEL MANAGEMENT NORTH LTD,1011711223,68.06,Travel & Subsistence Week 45,BD1 5HQ,ADMIN
FOOD STANDARDS AGENCY - Westminster,FOOD STANDARDS AGENCY - Westminster,2019-11-18,EXP - PURCHASE OF GOODS/SERVICES - RAIL TRAVEL,Resilience - Admin,CORPORATE TRAVEL MANAGEMENT NORTH LTD,1011711223,67.7,Travel & Subsistence Week 45,BD1 5HQ,ADMIN
FOOD STANDARDS AGENCY - Westminster,FOOD STANDARDS AGENCY - Westminster,2019-11-18,EXP - PURCHASE OF GOODS/SERVICES - TAXI SERVICES,Regulatory Delivery,CORPORATE TRAVEL MANAGEMENT NORTH LTD,1011711223,67.6,Travel & Subsistence Week 45,BD1 5HQ,ADMIN
FOOD STANDARDS AGENCY - Westminster,FOOD STANDARDS AGENCY - Westminster,2019-11-18,EXP - PURCHASE OF GOODS/SERVICES - RAIL TRAVEL,"Meat Hygiene, ABP, TSE",CORPORATE TRAVEL MANAGEMENT NORTH LTD,1011711223,64.95,Travel & Subsistence Week 45,BD1 5HQ,ADMIN
FOOD STANDARDS AGENCY - Westminster,FOOD STANDARDS AGENCY - Westminster,2019-11-18,EXP - PURCHASE OF GOODS/SERVICES - SUBSISTENCE,East 1,CORPORATE TRAVEL MANAGEMENT NORTH LTD,1011711223,57.18,Travel & Subsistence Week 45,BD1 5HQ,PROGRAMME
FOOD STANDARDS AGENCY - Westminster,FOOD STANDARDS AGENCY - Westminster,2019-11-18,EXP - PURCHASE OF GOODS/SERVICES - SUBSISTENCE,East 4,CORPORATE TRAVEL MANAGEMENT NORTH LTD,1011711223,56.51,Travel & Subsistence Week 45,BD1 5HQ,PROGRAMME
FOOD STANDARDS AGENCY - Westminster,FOOD STANDARDS AGENCY - Westminster,2019-11-18,EXP - PURCHASE OF GOODS/SERVICES - RAIL TRAVEL,East 2,CORPORATE TRAVEL MANAGEMENT NORTH LTD,1011711223,54.7,Travel & Subsistence Week 45,BD1 5HQ,PROGRAMME
FOOD STANDARDS AGENCY - Westminster,FOOD STANDARDS AGENCY - Westminster,2019-11-18,EXP - PURCHASE OF GOODS/SERVICES - RAIL TRAVEL,Wales and West 4 ,CORPORATE TRAVEL MANAGEMENT NORTH LTD,1011711223,44.7,Travel & Subsistence Week 45,BD1 5HQ,PROGRAMME
FOOD STANDARDS AGENCY - Westminster,FOOD STANDARDS AGENCY - Westminster,2019-11-18,EXP - PURCHASE OF GOODS/SERVICES - SUBSISTENCE,East 2,CORPORATE TRAVEL MANAGEMENT NORTH LTD,1011711223,44.05,Travel & Subsistence Week 45,BD1 5HQ,PROGRAMME
FOOD STANDARDS AGENCY - Westminster,FOOD STANDARDS AGENCY - Westminster,2019-11-18,EXP - PURCHASE OF GOODS/SERVICES - TAXI SERVICES,"Novel Foods, GM, Radiological and Feed Additives",CORPORATE TRAVEL MANAGEMENT NORTH LTD,1011711223,42.98,Travel & Subsistence Week 45,BD1 5HQ,ADMIN
FOOD STANDARDS AGENCY - Westminster,FOOD STANDARDS AGENCY - Westminster,2019-11-18,EXP - PURCHASE OF GOODS/SERVICES - RAIL TRAVEL,East 4,CORPORATE TRAVEL MANAGEMENT NORTH LTD,1011711223,42.85,Travel & Subsistence Week 45,BD1 5HQ,PROGRAMME
FOOD STANDARDS AGENCY - Westminster,FOOD STANDARDS AGENCY - Westminster,2019-11-18,EXP - PURCHASE OF GOODS/SERVICES - OTHER TRAVEL,Organisational Development,CORPORATE TRAVEL MANAGEMENT NORTH LTD,1011711223,42.11,Travel & Subsistence Week 45,BD1 5HQ,ADMIN
FOOD STANDARDS AGENCY - Westminster,FOOD STANDARDS AGENCY - Westminster,2019-11-18,EXP - PURCHASE OF GOODS/SERVICES - RAIL TRAVEL,North 1,CORPORATE TRAVEL MANAGEMENT NORTH LTD,1011711223,23.65,Travel & Subsistence Week 45,BD1 5HQ,PROGRAMME
FOOD STANDARDS AGENCY - Westminster,FOOD STANDARDS AGENCY - Westminster,2019-11-18,EXP - PURCHASE OF GOODS/SERVICES - RAIL TRAVEL,Wales and West 1 (Wales),CORPORATE TRAVEL MANAGEMENT NORTH LTD,1011711223,18.65,Travel & Subsistence Week 45,BD1 5HQ,PROGRAMME
FOOD STANDARDS AGENCY - Westminster,FOOD STANDARDS AGENCY - Westminster,2019-11-18,EXP - PURCHASE OF GOODS/SERVICES - TAXI SERVICES,Operational Delivery,CORPORATE TRAVEL MANAGEMENT NORTH LTD,1011711223,13.49,Travel & Subsistence Week 45,BD1 5HQ,PROGRAMME
FOOD STANDARDS AGENCY - Westminster,FOOD STANDARDS AGENCY - Westminster,2019-11-18,EXP - PURCHASE OF GOODS/SERVICES -  FOREIGN AIR TRAVEL,"Meat Hygiene, ABP, TSE",CORPORATE TRAVEL MANAGEMENT NORTH LTD,1011711223,8,Travel & Subsistence Week 45,BD1 5HQ,ADMIN
FOOD STANDARDS AGENCY - Westminster,FOOD STANDARDS AGENCY - Westminster,2019-11-18,EXP - PURCHASE OF GOODS/SERVICES - RAIL TRAVEL,Wales and West 1 (England),CORPORATE TRAVEL MANAGEMENT NORTH LTD,1011711223,7.95,Travel & Subsistence Week 45,BD1 5HQ,PROGRAMME
FOOD STANDARDS AGENCY - Westminster,FOOD STANDARDS AGENCY - Westminster,2019-11-18,EXP - PURCHASE OF GOODS/SERVICES - SUBSISTENCE,Resilience - Admin,CORPORATE TRAVEL MANAGEMENT NORTH LTD,1011711223,0.96,Travel & Subsistence Week 45,BD1 5HQ,ADMIN
FOOD STANDARDS AGENCY - Westminster,FOOD STANDARDS AGENCY - Westminster,2019-11-18,EXP - PURCHASE OF GOODS/SERVICES - SUBSISTENCE,Wales and West 2 (England),CORPORATE TRAVEL MANAGEMENT NORTH LTD,1011711223,-8.02,Travel & Subsistence Week 45,BD1 5HQ,PROGRAMME
FOOD STANDARDS AGENCY - Westminster,FOOD STANDARDS AGENCY - Westminster,2019-11-26,EXP - PURCHASE OF GOODS/SERVICES - RAIL TRAVEL,Operational Delivery,CORPORATE TRAVEL MANAGEMENT NORTH LTD,1011711279,4106.65,Travel & Subsistence Week 46,BD1 5HQ,PROGRAMME
FOOD STANDARDS AGENCY - Westminster,FOOD STANDARDS AGENCY - Westminster,2019-11-26,EXP - PURCHASE OF GOODS/SERVICES - SUBSISTENCE,NFCU Phase 2,CORPORATE TRAVEL MANAGEMENT NORTH LTD,1011711279,2218.91,Travel & Subsistence Week 46,BD1 5HQ,PROGRAMME
FOOD STANDARDS AGENCY - Westminster,FOOD STANDARDS AGENCY - Westminster,2019-11-26,EXP - PURCHASE OF GOODS/SERVICES -  FOREIGN AIR TRAVEL,Chief Scientific Advisors team,CORPORATE TRAVEL MANAGEMENT NORTH LTD,1011711279,2202.36,Travel & Subsistence Week 46,BD1 5HQ,ADMIN
FOOD STANDARDS AGENCY - Westminster,FOOD STANDARDS AGENCY - Westminster,2019-11-26,EXP - PURCHASE OF GOODS/SERVICES - RAIL TRAVEL,Chief Scientific Advisors team,CORPORATE TRAVEL MANAGEMENT NORTH LTD,1011711279,1736.65,Travel & Subsistence Week 46,BD1 5HQ,ADMIN
FOOD STANDARDS AGENCY - Westminster,FOOD STANDARDS AGENCY - Westminster,2019-11-26,EXP - PURCHASE OF GOODS/SERVICES - RAIL TRAVEL,Organisational Development,CORPORATE TRAVEL MANAGEMENT NORTH LTD,1011711279,1671.55,Travel & Subsistence Week 46,BD1 5HQ,ADMIN
FOOD STANDARDS AGENCY - Westminster,FOOD STANDARDS AGENCY - Westminster,2019-11-26,EXP - PURCHASE OF GOODS/SERVICES - RAIL TRAVEL,Regulatory Delivery,CORPORATE TRAVEL MANAGEMENT NORTH LTD,1011711279,1497,Travel & Subsistence Week 46,BD1 5HQ,ADMIN
FOOD STANDARDS AGENCY - Westminster,FOOD STANDARDS AGENCY - Westminster,2019-11-26,EXP - PURCHASE OF GOODS/SERVICES - RAIL TRAVEL,RDOT,CORPORATE TRAVEL MANAGEMENT NORTH LTD,1011711279,1467.6,Travel & Subsistence Week 46,BD1 5HQ,PROGRAMME
FOOD STANDARDS AGENCY - Westminster,FOOD STANDARDS AGENCY - Westminster,2019-11-26,EXP - PURCHASE OF GOODS/SERVICES - RAIL TRAVEL,Regulatory & International,CORPORATE TRAVEL MANAGEMENT NORTH LTD,1011711279,1441.45,Travel & Subsistence Week 46,BD1 5HQ,ADMIN
FOOD STANDARDS AGENCY - Westminster,FOOD STANDARDS AGENCY - Westminster,2019-11-26,EXP - PURCHASE OF GOODS/SERVICES - AIR TRAVEL,Regulatory Delivery,CORPORATE TRAVEL MANAGEMENT NORTH LTD,1011711279,1436.57,Travel & Subsistence Week 46,BD1 5HQ,ADMIN
FOOD STANDARDS AGENCY - Westminster,FOOD STANDARDS AGENCY - Westminster,2019-11-26,EXP - PURCHASE OF GOODS/SERVICES - RAIL TRAVEL,NFCU Phase 2,CORPORATE TRAVEL MANAGEMENT NORTH LTD,1011711279,1379.6,Travel & Subsistence Week 46,BD1 5HQ,PROGRAMME
FOOD STANDARDS AGENCY - Westminster,FOOD STANDARDS AGENCY - Westminster,2019-11-26,EXP - PURCHASE OF GOODS/SERVICES - AIR TRAVEL,RDOT,CORPORATE TRAVEL MANAGEMENT NORTH LTD,1011711279,1217.26,Travel & Subsistence Week 46,BD1 5HQ,PROGRAMME
FOOD STANDARDS AGENCY - Westminster,FOOD STANDARDS AGENCY - Westminster,2019-11-26,EXP - PURCHASE OF GOODS/SERVICES - SUBSISTENCE,Operational Delivery,CORPORATE TRAVEL MANAGEMENT NORTH LTD,1011711279,1191.87,Travel & Subsistence Week 46,BD1 5HQ,PROGRAMME
FOOD STANDARDS AGENCY - Westminster,FOOD STANDARDS AGENCY - Westminster,2019-11-26,EXP - PURCHASE OF GOODS/SERVICES - SUBSISTENCE,Regulatory Delivery,CORPORATE TRAVEL MANAGEMENT NORTH LTD,1011711279,1040.3,Travel & Subsistence Week 46,BD1 5HQ,ADMIN
FOOD STANDARDS AGENCY - Westminster,FOOD STANDARDS AGENCY - Westminster,2019-11-26,EXP - PURCHASE OF GOODS/SERVICES - RAIL TRAVEL,Internal Audit,CORPORATE TRAVEL MANAGEMENT NORTH LTD,1011711279,966.3,Travel & Subsistence Week 46,BD1 5HQ,ADMIN
FOOD STANDARDS AGENCY - Westminster,FOOD STANDARDS AGENCY - Westminster,2019-11-26,EXP - PURCHASE OF GOODS/SERVICES - RAIL TRAVEL,"Animal Feed, Foodborne Disease and Allergy (AFFDA)",CORPORATE TRAVEL MANAGEMENT NORTH LTD,1011711279,947.5,Travel & Subsistence Week 46,BD1 5HQ,ADMIN
FOOD STANDARDS AGENCY - Westminster,FOOD STANDARDS AGENCY - Westminster,2019-11-26,EXP - PURCHASE OF GOODS/SERVICES - RAIL TRAVEL,IT Information & Knowledge Management,CORPORATE TRAVEL MANAGEMENT NORTH LTD,1011711279,879,Travel & Subsistence Week 46,BD1 5HQ,ADMIN
FOOD STANDARDS AGENCY - Westminster,FOOD STANDARDS AGENCY - Westminster,2019-11-26,EXP - PURCHASE OF GOODS/SERVICES - RAIL TRAVEL,Comms Directors Office,CORPORATE TRAVEL MANAGEMENT NORTH LTD,1011711279,827.55,Travel & Subsistence Week 46,BD1 5HQ,ADMIN
FOOD STANDARDS AGENCY - Westminster,FOOD STANDARDS AGENCY - Westminster,2019-11-26,EXP - PURCHASE OF GOODS/SERVICES - RAIL TRAVEL,Chief Executive & Private Office,CORPORATE TRAVEL MANAGEMENT NORTH LTD,1011711279,646.95,Travel & Subsistence Week 46,BD1 5HQ,ADMIN
FOOD STANDARDS AGENCY - Westminster,FOOD STANDARDS AGENCY - Westminster,2019-11-26,EXP - PURCHASE OF GOODS/SERVICES - RAIL TRAVEL,Corporate Support Unit,CORPORATE TRAVEL MANAGEMENT NORTH LTD,1011711279,624.3,Travel & Subsistence Week 46,BD1 5HQ,ADMIN
FOOD STANDARDS AGENCY - Westminster,FOOD STANDARDS AGENCY - Westminster,2019-11-26,EXP - PURCHASE OF GOODS/SERVICES - RAIL TRAVEL,Analytics Unit,CORPORATE TRAVEL MANAGEMENT NORTH LTD,1011711279,577.35,Travel & Subsistence Week 46,BD1 5HQ,ADMIN
FOOD STANDARDS AGENCY - Westminster,FOOD STANDARDS AGENCY - Westminster,2019-11-26,EXP - PURCHASE OF GOODS/SERVICES - RAIL TRAVEL,"Novel Foods, GM, Radiological and Feed Additives",CORPORATE TRAVEL MANAGEMENT NORTH LTD,1011711279,576.25,Travel & Subsistence Week 46,BD1 5HQ,ADMIN
FOOD STANDARDS AGENCY - Westminster,FOOD STANDARDS AGENCY - Westminster,2019-11-26,EXP - PURCHASE OF GOODS/SERVICES - SUBSISTENCE,RDOT,CORPORATE TRAVEL MANAGEMENT NORTH LTD,1011711279,557.87,Travel & Subsistence Week 46,BD1 5HQ,PROGRAMME
FOOD STANDARDS AGENCY - Westminster,FOOD STANDARDS AGENCY - Westminster,2019-11-26,EXP - PURCHASE OF GOODS/SERVICES - AIR TRAVEL,Comms Directors Office,CORPORATE TRAVEL MANAGEMENT NORTH LTD,1011711279,547.94,Travel & Subsistence Week 46,BD1 5HQ,ADMIN
FOOD STANDARDS AGENCY - Westminster,FOOD STANDARDS AGENCY - Westminster,2019-11-26,EXP - PURCHASE OF GOODS/SERVICES - RAIL TRAVEL,Procurement,CORPORATE TRAVEL MANAGEMENT NORTH LTD,1011711279,547.7,Travel & Subsistence Week 46,BD1 5HQ,ADMIN
FOOD STANDARDS AGENCY - Westminster,FOOD STANDARDS AGENCY - Westminster,2019-11-26,EXP - PURCHASE OF GOODS/SERVICES - RAIL TRAVEL,Finance Director & Branch,CORPORATE TRAVEL MANAGEMENT NORTH LTD,1011711279,544.9,Travel & Subsistence Week 46,BD1 5HQ,ADMIN
FOOD STANDARDS AGENCY - Westminster,FOOD STANDARDS AGENCY - Westminster,2019-11-26,EXP - PURCHASE OF GOODS/SERVICES - AIR TRAVEL,Organisational Development,CORPORATE TRAVEL MANAGEMENT NORTH LTD,1011711279,536.59,Travel & Subsistence Week 46,BD1 5HQ,ADMIN
FOOD STANDARDS AGENCY - Westminster,FOOD STANDARDS AGENCY - Westminster,2019-11-26,EXP - PURCHASE OF GOODS/SERVICES - SUBSISTENCE,Chief Scientific Advisors team,CORPORATE TRAVEL MANAGEMENT NORTH LTD,1011711279,536.39,Travel & Subsistence Week 46,BD1 5HQ,ADMIN
FOOD STANDARDS AGENCY - Westminster,FOOD STANDARDS AGENCY - Westminster,2019-11-26,EXP - PURCHASE OF GOODS/SERVICES - RAIL TRAVEL,Risk Assessment - operations,CORPORATE TRAVEL MANAGEMENT NORTH LTD,1011711279,478.15,Travel & Subsistence Week 46,BD1 5HQ,ADMIN
FOOD STANDARDS AGENCY - Westminster,FOOD STANDARDS AGENCY - Westminster,2019-11-26,EXP - PURCHASE OF GOODS/SERVICES - RAIL TRAVEL,Food Crime Unit - Prog,CORPORATE TRAVEL MANAGEMENT NORTH LTD,1011711279,424.35,Travel & Subsistence Week 46,BD1 5HQ,PROGRAMME
FOOD STANDARDS AGENCY - Westminster,FOOD STANDARDS AGENCY - Westminster,2019-11-26,EXP - PURCHASE OF GOODS/SERVICES - RAIL TRAVEL,East 1,CORPORATE TRAVEL MANAGEMENT NORTH LTD,1011711279,420.5,Travel & Subsistence Week 46,BD1 5HQ,PROGRAMME
FOOD STANDARDS AGENCY - Westminster,FOOD STANDARDS AGENCY - Westminster,2019-11-26,EXP - PURCHASE OF GOODS/SERVICES - AIR TRAVEL,Regulatory & International,CORPORATE TRAVEL MANAGEMENT NORTH LTD,1011711279,409.49,Travel & Subsistence Week 46,BD1 5HQ,ADMIN
FOOD STANDARDS AGENCY - Westminster,FOOD STANDARDS AGENCY - Westminster,2019-11-26,EXP - PURCHASE OF GOODS/SERVICES - RAIL TRAVEL,Legal Branch A & Investigations,CORPORATE TRAVEL MANAGEMENT NORTH LTD,1011711279,391.85,Travel & Subsistence Week 46,BD1 5HQ,ADMIN
FOOD STANDARDS AGENCY - Westminster,FOOD STANDARDS AGENCY - Westminster,2019-11-26,EXP - PURCHASE OF GOODS/SERVICES - RAIL TRAVEL,Food Incidents & Resilience - Prog,CORPORATE TRAVEL MANAGEMENT NORTH LTD,1011711279,376.75,Travel & Subsistence Week 46,BD1 5HQ,PROGRAMME
FOOD STANDARDS AGENCY - Westminster,FOOD STANDARDS AGENCY - Westminster,2019-11-26,EXP - PURCHASE OF GOODS/SERVICES - AIR TRAVEL,Imports & Exports Team (Admin),CORPORATE TRAVEL MANAGEMENT NORTH LTD,1011711279,370.22,Travel & Subsistence Week 46,BD1 5HQ,ADMIN
FOOD STANDARDS AGENCY - Westminster,FOOD STANDARDS AGENCY - Westminster,2019-11-26,EXP - PURCHASE OF GOODS/SERVICES - SUBSISTENCE,Comms Directors Office,CORPORATE TRAVEL MANAGEMENT NORTH LTD,1011711279,352.02,Travel & Subsistence Week 46,BD1 5HQ,ADMIN
FOOD STANDARDS AGENCY - Westminster,FOOD STANDARDS AGENCY - Westminster,2019-11-26,EXP - PURCHASE OF GOODS/SERVICES - AIR TRAVEL,NFCU Phase 2,CORPORATE TRAVEL MANAGEMENT NORTH LTD,1011711279,341.3,Travel & Subsistence Week 46,BD1 5HQ,PROGRAMME
FOOD STANDARDS AGENCY - Westminster,FOOD STANDARDS AGENCY - Westminster,2019-11-26,EXP - PURCHASE OF GOODS/SERVICES - RAIL TRAVEL,East 4,CORPORATE TRAVEL MANAGEMENT NORTH LTD,1011711279,341.15,Travel & Subsistence Week 46,BD1 5HQ,PROGRAMME
FOOD STANDARDS AGENCY - Westminster,FOOD STANDARDS AGENCY - Westminster,2019-11-26,EXP - PURCHASE OF GOODS/SERVICES - RAIL TRAVEL,Non Meat Field Ops,CORPORATE TRAVEL MANAGEMENT NORTH LTD,1011711279,338.75,Travel & Subsistence Week 46,BD1 5HQ,PROGRAMME
FOOD STANDARDS AGENCY - Westminster,FOOD STANDARDS AGENCY - Westminster,2019-11-26,EXP - PURCHASE OF GOODS/SERVICES - SUBSISTENCE,Food Crime Unit - Prog,CORPORATE TRAVEL MANAGEMENT NORTH LTD,1011711279,336.68,Travel & Subsistence Week 46,BD1 5HQ,PROGRAMME
FOOD STANDARDS AGENCY - Westminster,FOOD STANDARDS AGENCY - Westminster,2019-11-26,EXP - PURCHASE OF GOODS/SERVICES - RAIL TRAVEL,Wales and West 4 ,CORPORATE TRAVEL MANAGEMENT NORTH LTD,1011711279,329.9,Travel & Subsistence Week 46,BD1 5HQ,PROGRAMME
FOOD STANDARDS AGENCY - Westminster,FOOD STANDARDS AGENCY - Westminster,2019-11-26,EXP - PURCHASE OF GOODS/SERVICES - SUBSISTENCE,IT Information & Knowledge Management,CORPORATE TRAVEL MANAGEMENT NORTH LTD,1011711279,329.4,Travel & Subsistence Week 46,BD1 5HQ,ADMIN
FOOD STANDARDS AGENCY - Westminster,FOOD STANDARDS AGENCY - Westminster,2019-11-26,EXP - PURCHASE OF GOODS/SERVICES -  FOREIGN AIR TRAVEL,"Food Additives, Flavourings, and Food Contact Materials",CORPORATE TRAVEL MANAGEMENT NORTH LTD,1011711279,322.5,Travel & Subsistence Week 46,BD1 5HQ,ADMIN
FOOD STANDARDS AGENCY - Westminster,FOOD STANDARDS AGENCY - Westminster,2019-11-26,EXP - PURCHASE OF GOODS/SERVICES - SUBSISTENCE,Wales and West 2 (Wales),CORPORATE TRAVEL MANAGEMENT NORTH LTD,1011711279,320.96,Travel & Subsistence Week 46,BD1 5HQ,PROGRAMME
FOOD STANDARDS AGENCY - Westminster,FOOD STANDARDS AGENCY - Westminster,2019-11-26,EXP - PURCHASE OF GOODS/SERVICES - RAIL TRAVEL,Imports & Exports Team (Admin),CORPORATE TRAVEL MANAGEMENT NORTH LTD,1011711279,304.87,Travel & Subsistence Week 46,BD1 5HQ,ADMIN
FOOD STANDARDS AGENCY - Westminster,FOOD STANDARDS AGENCY - Westminster,2019-11-26,EXP - PURCHASE OF GOODS/SERVICES - SUBSISTENCE,Internal Audit,CORPORATE TRAVEL MANAGEMENT NORTH LTD,1011711279,303.36,Travel & Subsistence Week 46,BD1 5HQ,ADMIN
FOOD STANDARDS AGENCY - Westminster,FOOD STANDARDS AGENCY - Westminster,2019-11-26,EXP - PURCHASE OF GOODS/SERVICES - SUBSISTENCE,Wales and West 4 ,CORPORATE TRAVEL MANAGEMENT NORTH LTD,1011711279,300.27,Travel & Subsistence Week 46,BD1 5HQ,PROGRAMME
FOOD STANDARDS AGENCY - Westminster,FOOD STANDARDS AGENCY - Westminster,2019-11-26,EXP - PURCHASE OF GOODS/SERVICES - SUBSISTENCE,Organisational Development,CORPORATE TRAVEL MANAGEMENT NORTH LTD,1011711279,298.42,Travel & Subsistence Week 46,BD1 5HQ,ADMIN
FOOD STANDARDS AGENCY - Westminster,FOOD STANDARDS AGENCY - Westminster,2019-11-26,EXP - PURCHASE OF GOODS/SERVICES -  FOREIGN AIR TRAVEL,Chemical Contaminants and Residues,CORPORATE TRAVEL MANAGEMENT NORTH LTD,1011711279,295.5,Travel & Subsistence Week 46,BD1 5HQ,ADMIN
FOOD STANDARDS AGENCY - Westminster,FOOD STANDARDS AGENCY - Westminster,2019-11-26,EXP - PURCHASE OF GOODS/SERVICES - RAIL TRAVEL,Digital,CORPORATE TRAVEL MANAGEMENT NORTH LTD,1011711279,280.25,Travel & Subsistence Week 46,BD1 5HQ,ADMIN
FOOD STANDARDS AGENCY - Westminster,FOOD STANDARDS AGENCY - Westminster,2019-11-26,EXP - PURCHASE OF GOODS/SERVICES - RAIL TRAVEL,Food Crime Unit - Admin,CORPORATE TRAVEL MANAGEMENT NORTH LTD,1011711279,278.5,Travel & Subsistence Week 46,BD1 5HQ,ADMIN
FOOD STANDARDS AGENCY - Westminster,FOOD STANDARDS AGENCY - Westminster,2019-11-26,EXP - PURCHASE OF GOODS/SERVICES - SUBSISTENCE,Planning and Performance,CORPORATE TRAVEL MANAGEMENT NORTH LTD,1011711279,263.85,Travel & Subsistence Week 46,BD1 5HQ,ADMIN
FOOD STANDARDS AGENCY - Westminster,FOOD STANDARDS AGENCY - Westminster,2019-11-26,EXP - PURCHASE OF GOODS/SERVICES - AIR TRAVEL,Chief Scientific Advisors team,CORPORATE TRAVEL MANAGEMENT NORTH LTD,1011711279,253.73,Travel & Subsistence Week 46,BD1 5HQ,ADMIN
FOOD STANDARDS AGENCY - Westminster,FOOD STANDARDS AGENCY - Westminster,2019-11-26,EXP - PURCHASE OF GOODS/SERVICES - RAIL TRAVEL,East 2,CORPORATE TRAVEL MANAGEMENT NORTH LTD,1011711279,244.55,Travel & Subsistence Week 46,BD1 5HQ,PROGRAMME
FOOD STANDARDS AGENCY - Westminster,FOOD STANDARDS AGENCY - Westminster,2019-11-26,EXP - PURCHASE OF GOODS/SERVICES - RAIL TRAVEL,Wales and West 1 (England),CORPORATE TRAVEL MANAGEMENT NORTH LTD,1011711279,242.3,Travel & Subsistence Week 46,BD1 5HQ,PROGRAMME
FOOD STANDARDS AGENCY - Westminster,FOOD STANDARDS AGENCY - Westminster,2019-11-26,EXP - PURCHASE OF GOODS/SERVICES - RAIL TRAVEL,North 1,CORPORATE TRAVEL MANAGEMENT NORTH LTD,1011711279,218.67,Travel & Subsistence Week 46,BD1 5HQ,PROGRAMME
FOOD STANDARDS AGENCY - Westminster,FOOD STANDARDS AGENCY - Westminster,2019-11-26,EXP - PURCHASE OF GOODS/SERVICES - SUBSISTENCE,Non Meat Field Ops,CORPORATE TRAVEL MANAGEMENT NORTH LTD,1011711279,211.86,Travel & Subsistence Week 46,BD1 5HQ,PROGRAMME
FOOD STANDARDS AGENCY - Westminster,FOOD STANDARDS AGENCY - Westminster,2019-11-26,EXP - PURCHASE OF GOODS/SERVICES - SUBSISTENCE,Analytics Unit,CORPORATE TRAVEL MANAGEMENT NORTH LTD,1011711279,211.82,Travel & Subsistence Week 46,BD1 5HQ,ADMIN
FOOD STANDARDS AGENCY - Westminster,FOOD STANDARDS AGENCY - Westminster,2019-11-26,EXP - PURCHASE OF GOODS/SERVICES - SUBSISTENCE,Chief Executive & Private Office,CORPORATE TRAVEL MANAGEMENT NORTH LTD,1011711279,204.06,Travel & Subsistence Week 46,BD1 5HQ,ADMIN
FOOD STANDARDS AGENCY - Westminster,FOOD STANDARDS AGENCY - Westminster,2019-11-26,EXP - PURCHASE OF GOODS/SERVICES - RAIL TRAVEL,Programme and project delivery,CORPORATE TRAVEL MANAGEMENT NORTH LTD,1011711279,195.55,Travel & Subsistence Week 46,BD1 5HQ,ADMIN
FOOD STANDARDS AGENCY - Westminster,FOOD STANDARDS AGENCY - Westminster,2019-11-26,EXP - PURCHASE OF GOODS/SERVICES - RAIL TRAVEL,IT Service Delivery,CORPORATE TRAVEL MANAGEMENT NORTH LTD,1011711279,185.1,Travel & Subsistence Week 46,BD1 5HQ,ADMIN
FOOD STANDARDS AGENCY - Westminster,FOOD STANDARDS AGENCY - Westminster,2019-11-26,EXP - PURCHASE OF GOODS/SERVICES - SUBSISTENCE,East 4,CORPORATE TRAVEL MANAGEMENT NORTH LTD,1011711279,179.95,Travel & Subsistence Week 46,BD1 5HQ,PROGRAMME
FOOD STANDARDS AGENCY - Westminster,FOOD STANDARDS AGENCY - Westminster,2019-11-26,EXP - PURCHASE OF GOODS/SERVICES - SUBSISTENCE,Finance Director & Branch,CORPORATE TRAVEL MANAGEMENT NORTH LTD,1011711279,178.56,Travel & Subsistence Week 46,BD1 5HQ,ADMIN
FOOD STANDARDS AGENCY - Westminster,FOOD STANDARDS AGENCY - Westminster,2019-11-26,EXP - PURCHASE OF GOODS/SERVICES - SUBSISTENCE,"Novel Foods, GM, Radiological and Feed Additives",CORPORATE TRAVEL MANAGEMENT NORTH LTD,1011711279,173.05,Travel & Subsistence Week 46,BD1 5HQ,ADMIN
FOOD STANDARDS AGENCY - Westminster,FOOD STANDARDS AGENCY - Westminster,2019-11-26,EXP - PURCHASE OF GOODS/SERVICES - RAIL TRAVEL,Regulatory Delivery,CORPORATE TRAVEL MANAGEMENT NORTH LTD,1011711279,172.16,Travel & Subsistence Week 46,BD1 5HQ,ADMIN
FOOD STANDARDS AGENCY - Westminster,FOOD STANDARDS AGENCY - Westminster,2019-11-26,EXP - PURCHASE OF GOODS/SERVICES - AIR TRAVEL,Operational Delivery,CORPORATE TRAVEL MANAGEMENT NORTH LTD,1011711279,162.01,Travel & Subsistence Week 46,BD1 5HQ,PROGRAMME
FOOD STANDARDS AGENCY - Westminster,FOOD STANDARDS AGENCY - Westminster,2019-11-26,EXP - PURCHASE OF GOODS/SERVICES - SUBSISTENCE,Legal Branch A & Investigations,CORPORATE TRAVEL MANAGEMENT NORTH LTD,1011711279,153.92,Travel & Subsistence Week 46,BD1 5HQ,ADMIN
FOOD STANDARDS AGENCY - Westminster,FOOD STANDARDS AGENCY - Westminster,2019-11-26,EXP - PURCHASE OF GOODS/SERVICES - RAIL TRAVEL,East 3,CORPORATE TRAVEL MANAGEMENT NORTH LTD,1011711279,141.05,Travel & Subsistence Week 46,BD1 5HQ,PROGRAMME
FOOD STANDARDS AGENCY - Westminster,FOOD STANDARDS AGENCY - Westminster,2019-11-26,EXP - PURCHASE OF GOODS/SERVICES - SUBSISTENCE,IT Service Delivery,CORPORATE TRAVEL MANAGEMENT NORTH LTD,1011711279,139.54,Travel & Subsistence Week 46,BD1 5HQ,ADMIN
FOOD STANDARDS AGENCY - Westminster,FOOD STANDARDS AGENCY - Westminster,2019-11-26,EXP - PURCHASE OF GOODS/SERVICES - RAIL TRAVEL,Wales and West 2 (England),CORPORATE TRAVEL MANAGEMENT NORTH LTD,1011711279,133.95,Travel & Subsistence Week 46,BD1 5HQ,PROGRAMME
FOOD STANDARDS AGENCY - Westminster,FOOD STANDARDS AGENCY - Westminster,2019-11-26,EXP - PURCHASE OF GOODS/SERVICES - SUBSISTENCE,"Meat Hygiene, ABP, TSE",CORPORATE TRAVEL MANAGEMENT NORTH LTD,1011711279,125.21,Travel & Subsistence Week 46,BD1 5HQ,ADMIN
FOOD STANDARDS AGENCY - Westminster,FOOD STANDARDS AGENCY - Westminster,2019-11-26,EXP - PURCHASE OF GOODS/SERVICES - AIR TRAVEL,Non Meat Field Ops,CORPORATE TRAVEL MANAGEMENT NORTH LTD,1011711279,121.36,Travel & Subsistence Week 46,BD1 5HQ,PROGRAMME
FOOD STANDARDS AGENCY - Westminster,FOOD STANDARDS AGENCY - Westminster,2019-11-26,EXP - PURCHASE OF GOODS/SERVICES - AIR TRAVEL,IT Information & Knowledge Management,CORPORATE TRAVEL MANAGEMENT NORTH LTD,1011711279,117.02,Travel & Subsistence Week 46,BD1 5HQ,ADMIN
FOOD STANDARDS AGENCY - Westminster,FOOD STANDARDS AGENCY - Westminster,2019-11-26,EXP - PURCHASE OF GOODS/SERVICES - SUBSISTENCE,Corporate Support Unit,CORPORATE TRAVEL MANAGEMENT NORTH LTD,1011711279,108.6,Travel & Subsistence Week 46,BD1 5HQ,ADMIN
FOOD STANDARDS AGENCY - Westminster,FOOD STANDARDS AGENCY - Westminster,2019-11-26,EXP - PURCHASE OF GOODS/SERVICES - RAIL TRAVEL,North 4,CORPORATE TRAVEL MANAGEMENT NORTH LTD,1011711279,106.35,Travel & Subsistence Week 46,BD1 5HQ,PROGRAMME
FOOD STANDARDS AGENCY - Westminster,FOOD STANDARDS AGENCY - Westminster,2019-11-26,EXP - PURCHASE OF GOODS/SERVICES - SUBSISTENCE,Wales and West 1 (Wales),CORPORATE TRAVEL MANAGEMENT NORTH LTD,1011711279,103.98,Travel & Subsistence Week 46,BD1 5HQ,PROGRAMME
FOOD STANDARDS AGENCY - Westminster,FOOD STANDARDS AGENCY - Westminster,2019-11-26,EXP - PURCHASE OF GOODS/SERVICES - RAIL TRAVEL,Regulating our Future,CORPORATE TRAVEL MANAGEMENT NORTH LTD,1011711279,103.25,Travel & Subsistence Week 46,BD1 5HQ,ADMIN
FOOD STANDARDS AGENCY - Westminster,FOOD STANDARDS AGENCY - Westminster,2019-11-26,EXP - PURCHASE OF GOODS/SERVICES - SUBSISTENCE,North 4,CORPORATE TRAVEL MANAGEMENT NORTH LTD,1011711279,102.19,Travel & Subsistence Week 46,BD1 5HQ,PROGRAMME
FOOD STANDARDS AGENCY - Westminster,FOOD STANDARDS AGENCY - Westminster,2019-11-26,EXP - PURCHASE OF GOODS/SERVICES - RAIL TRAVEL,North 2,CORPORATE TRAVEL MANAGEMENT NORTH LTD,1011711279,102.13,Travel & Subsistence Week 46,BD1 5HQ,PROGRAMME
FOOD STANDARDS AGENCY - Westminster,FOOD STANDARDS AGENCY - Westminster,2019-11-26,EXP - PURCHASE OF GOODS/SERVICES - RAIL TRAVEL,Chemical Contaminants and Residues,CORPORATE TRAVEL MANAGEMENT NORTH LTD,1011711279,92.05,Travel & Subsistence Week 46,BD1 5HQ,ADMIN
FOOD STANDARDS AGENCY - Westminster,FOOD STANDARDS AGENCY - Westminster,2019-11-26,EXP - PURCHASE OF GOODS/SERVICES - SUBSISTENCE,Imports & Exports Team (Admin),CORPORATE TRAVEL MANAGEMENT NORTH LTD,1011711279,85.8,Travel & Subsistence Week 46,BD1 5HQ,ADMIN
FOOD STANDARDS AGENCY - Westminster,FOOD STANDARDS AGENCY - Westminster,2019-11-26,EXP - PURCHASE OF GOODS/SERVICES - RAIL TRAVEL,Wales and West 2 (Wales),CORPORATE TRAVEL MANAGEMENT NORTH LTD,1011711279,76.25,Travel & Subsistence Week 46,BD1 5HQ,PROGRAMME
FOOD STANDARDS AGENCY - Westminster,FOOD STANDARDS AGENCY - Westminster,2019-11-26,EXP - PURCHASE OF GOODS/SERVICES - SUBSISTENCE,East 2,CORPORATE TRAVEL MANAGEMENT NORTH LTD,1011711279,75.96,Travel & Subsistence Week 46,BD1 5HQ,PROGRAMME
FOOD STANDARDS AGENCY - Westminster,FOOD STANDARDS AGENCY - Westminster,2019-11-26,EXP - PURCHASE OF GOODS/SERVICES - RAIL TRAVEL,Wales and West 1 (Wales),CORPORATE TRAVEL MANAGEMENT NORTH LTD,1011711279,75.35,Travel & Subsistence Week 46,BD1 5HQ,PROGRAMME
FOOD STANDARDS AGENCY - Westminster,FOOD STANDARDS AGENCY - Westminster,2019-11-26,EXP - PURCHASE OF GOODS/SERVICES - SUBSISTENCE,Regulatory Delivery,CORPORATE TRAVEL MANAGEMENT NORTH LTD,1011711279,59.48,Travel & Subsistence Week 46,BD1 5HQ,ADMIN
FOOD STANDARDS AGENCY - Westminster,FOOD STANDARDS AGENCY - Westminster,2019-11-26,EXP - PURCHASE OF GOODS/SERVICES - SUBSISTENCE,Procurement,CORPORATE TRAVEL MANAGEMENT NORTH LTD,1011711279,58.14,Travel & Subsistence Week 46,BD1 5HQ,ADMIN
FOOD STANDARDS AGENCY - Westminster,FOOD STANDARDS AGENCY - Westminster,2019-11-26,EXP - PURCHASE OF GOODS/SERVICES - SUBSISTENCE,Risk Assessment - operations,CORPORATE TRAVEL MANAGEMENT NORTH LTD,1011711279,57.18,Travel & Subsistence Week 46,BD1 5HQ,ADMIN
FOOD STANDARDS AGENCY - Westminster,FOOD STANDARDS AGENCY - Westminster,2019-11-26,EXP - PURCHASE OF GOODS/SERVICES - SUBSISTENCE,North 1,CORPORATE TRAVEL MANAGEMENT NORTH LTD,1011711279,52.26,Travel & Subsistence Week 46,BD1 5HQ,PROGRAMME
FOOD STANDARDS AGENCY - Westminster,FOOD STANDARDS AGENCY - Westminster,2019-11-26,EXP - PURCHASE OF GOODS/SERVICES - RAIL TRAVEL,Resilience - Admin,CORPORATE TRAVEL MANAGEMENT NORTH LTD,1011711279,33.85,Travel & Subsistence Week 46,BD1 5HQ,ADMIN
FOOD STANDARDS AGENCY - Westminster,FOOD STANDARDS AGENCY - Westminster,2019-11-26,EXP - PURCHASE OF GOODS/SERVICES - OTHER TRAVEL,Analytics Unit,CORPORATE TRAVEL MANAGEMENT NORTH LTD,1011711279,18.85,Travel & Subsistence Week 46,BD1 5HQ,ADMIN
FOOD STANDARDS AGENCY - Westminster,FOOD STANDARDS AGENCY - Westminster,2019-11-26,EXP - PURCHASE OF GOODS/SERVICES - OTHER TRAVEL,Regulatory Delivery,CORPORATE TRAVEL MANAGEMENT NORTH LTD,1011711279,13.35,Travel & Subsistence Week 46,BD1 5HQ,ADMIN
FOOD STANDARDS AGENCY - Westminster,FOOD STANDARDS AGENCY - Westminster,2019-11-26,EXP - PURCHASE OF GOODS/SERVICES - OTHER TRAVEL,"Animal Feed, Foodborne Disease and Allergy (AFFDA)",CORPORATE TRAVEL MANAGEMENT NORTH LTD,1011711279,13.35,Travel & Subsistence Week 46,BD1 5HQ,ADMIN
FOOD STANDARDS AGENCY - Westminster,FOOD STANDARDS AGENCY - Westminster,2019-11-26,EXP - PURCHASE OF GOODS/SERVICES - OTHER TRAVEL,East 1,CORPORATE TRAVEL MANAGEMENT NORTH LTD,1011711279,13.35,Travel & Subsistence Week 46,BD1 5HQ,PROGRAMME
FOOD STANDARDS AGENCY - Westminster,FOOD STANDARDS AGENCY - Westminster,2019-11-26,EXP - PURCHASE OF GOODS/SERVICES - RAIL TRAVEL,Scientific Methods & Laboratory Policy,CORPORATE TRAVEL MANAGEMENT NORTH LTD,1011711279,12.05,Travel & Subsistence Week 46,BD1 5HQ,ADMIN
FOOD STANDARDS AGENCY - Westminster,FOOD STANDARDS AGENCY - Westminster,2019-11-26,EXP - PURCHASE OF GOODS/SERVICES - OTHER TRAVEL,Corporate Support Unit,CORPORATE TRAVEL MANAGEMENT NORTH LTD,1011711279,-93.85,Travel & Subsistence Week 46,BD1 5HQ,ADMIN
FOOD STANDARDS AGENCY - Westminster,FOOD STANDARDS AGENCY - Westminster,2019-11-26,EXP - PURCHASE OF GOODS/SERVICES - RAIL TRAVEL,Planning and Performance,CORPORATE TRAVEL MANAGEMENT NORTH LTD,1011711279,-102.05,Travel & Subsistence Week 46,BD1 5HQ,ADMIN
FOOD STANDARDS AGENCY - Westminster,FOOD STANDARDS AGENCY - Westminster,2019-11-29,EXP - SHORT-TERM CONTRACT & AGENCY STAFF - FULL COST,Digital,ALEXANDER MANN SOLUTIONS LTD-2WM,1011711313,5543.42,TEMPORARY STAFF,EC2N 3AQ,ADMIN
FOOD STANDARDS AGENCY - Westminster,FOOD STANDARDS AGENCY - Westminster,2019-11-29,EXP - SHORT-TERM CONTRACT & AGENCY STAFF - FULL COST,Operational Delivery,ALEXANDER MANN SOLUTIONS LTD-2WM,1011711313,5296.98,TEMPORARY STAFF,EC2N 3AQ,PROGRAMME
FOOD STANDARDS AGENCY - Westminster,FOOD STANDARDS AGENCY - Westminster,2019-11-29,EXP - SHORT-TERM CONTRACT & AGENCY STAFF - FULL COST,Finance Director & Branch,ALEXANDER MANN SOLUTIONS LTD-2WM,1011711313,4529.43,TEMPORARY STAFF,EC2N 3AQ,ADMIN
FOOD STANDARDS AGENCY - Westminster,FOOD STANDARDS AGENCY - Westminster,2019-11-29,EXP - SHORT-TERM CONTRACT & AGENCY STAFF - FULL COST,Finance Director & Branch,ALEXANDER MANN SOLUTIONS LTD-2WM,1011711313,1310.68,TEMPORARY STAFF,EC2N 3AQ,ADMIN
FOOD STANDARDS AGENCY - Westminster,FOOD STANDARDS AGENCY - Westminster,2019-11-29,EXP - SHORT-TERM CONTRACT & AGENCY STAFF - FULL COST,Corporate Support Unit,ALEXANDER MANN SOLUTIONS LTD-2WM,1011711313,757.11,TEMPORARY STAFF,EC2N 3AQ,ADMIN
FOOD STANDARDS AGENCY - Westminster,FOOD STANDARDS AGENCY - Westminster,2019-11-29,EXP - SHORT-TERM CONTRACT & AGENCY STAFF - FULL COST,Programme and project delivery,ALEXANDER MANN SOLUTIONS LTD-2WM,1011711313,573.55,TEMPORARY STAFF,EC2N 3AQ,ADMIN
